{"text_format":"3","workbook":"xlsx","n_sheets":1,"sheets":["Familienkalender"],"not_rendered":{"images":2,"defined_names":15},"read":"whole","date_system":"1900"}

{"sheet":"Familienkalender","index":0,"n_rows":49,"n_cols":36,"rows_kept":49,"merged":[[2,3,2,29],[2,30,2,34],[5,3,5,6],[5,7,5,16],[5,20,5,34],[6,3,6,6],[6,7,6,16],[6,20,6,34],[7,3,7,6],[7,7,7,16],[7,20,7,34],[8,3,8,6],[8,7,8,16],[8,20,8,34],[9,3,9,6],[9,7,9,16],[9,20,9,34],[10,3,10,6],[10,7,10,16],[10,20,10,34],[11,3,11,6],[11,7,11,16],[11,20,11,34],[12,3,12,6],[12,7,12,16],[12,20,12,34],[13,3,13,6],[13,7,13,16],[13,20,13,34],[14,3,14,6],[14,7,14,16],[14,20,14,34],[15,3,15,6],[15,7,15,16],[15,20,15,34],[16,3,16,6],[16,7,16,16],[16,20,16,34],[17,3,17,6],[17,7,17,16],[17,20,17,34],[18,3,18,6],[18,7,18,16],[18,20,18,34],[19,3,19,6],[19,7,19,16],[19,20,19,34],[20,3,20,4],[21,3,21,4],[23,2,23,8],[23,11,23,17],[23,20,23,26],[23,29,23,35],[32,2,32,8],[32,11,32,17],[32,20,32,26],[32,29,32,35],[41,2,41,8],[41,11,41,17],[41,20,41,26],[41,29,41,35]]}
[]
[]
[{"$nulls":3},"Familienkalender von Familie Schmidt",{"$nulls":26},{"$f":"YEAR(TODAY())","v":2019}]
[]
[{"$nulls":3},"Wichtige Termine",{"$nulls":16},"Notizen"]
[{"$nulls":3},{"$f":"DATE(YEAR(TODAY()),1,1)","v":"2019-01-01"},{"$nulls":3},"Neujahr"]
[{"$nulls":3},{"$f":"DATE(YEAR(TODAY()),3,25)","v":"2019-03-25"},{"$nulls":3},"Papis Geburtstag"]
{"$rows_empty":16}
[null,null,{"$f":"DATE(KalenderJahr,1,1)","v":"2019-01-01"},{"$nulls":8},{"$f":"DATE(KalenderJahr,2,1)","v":"2019-02-01"},{"$nulls":8},{"$f":"DATE(KalenderJahr,3,1)","v":"2019-03-01"},{"$nulls":8},{"$f":"DATE(KalenderJahr,4,1)","v":"2019-04-01"}]
[null,null,"M","D","M","D","F","S","S",null,null,"M","D","M","D","F","S","S",null,null,"M","D","M","D","F","S","S",null,null,"M","D","M","D","F","S","S"]
[null,null,{"$f":"IF(DAY(JanSo1)=1,\"\",IF(AND(YEAR(JanSo1+1)=KalenderJahr,MONTH(JanSo1+1)=1),JanSo1+1,\"\"))","v":""},{"$f":"IF(DAY(JanSo1)=1,\"\",IF(AND(YEAR(JanSo1+2)=KalenderJahr,MONTH(JanSo1+2)=1),JanSo1+2,\"\"))","v":"2019-01-01"},{"$f":"IF(DAY(JanSo1)=1,\"\",IF(AND(YEAR(JanSo1+3)=KalenderJahr,MONTH(JanSo1+3)=1),JanSo1+3,\"\"))","v":"2019-01-02"},{"$f":"IF(DAY(JanSo1)=1,\"\",IF(AND(YEAR(JanSo1+4)=KalenderJahr,MONTH(JanSo1+4)=1),JanSo1+4,\"\"))","v":"2019-01-03"},{"$f":"IF(DAY(JanSo1)=1,\"\",IF(AND(YEAR(JanSo1+5)=KalenderJahr,MONTH(JanSo1+5)=1),JanSo1+5,\"\"))","v":"2019-01-04"},{"$f":"IF(DAY(JanSo1)=1,\"\",IF(AND(YEAR(JanSo1+6)=KalenderJahr,MONTH(JanSo1+6)=1),JanSo1+6,\"\"))","v":"2019-01-05"},{"$f":"IF(DAY(JanSo1)=1,IF(AND(YEAR(JanSo1)=KalenderJahr,MONTH(JanSo1)=1),JanSo1,\"\"),IF(AND(YEAR(JanSo1+7)=KalenderJahr,MONTH(JanSo1+7)=1),JanSo1+7,\"\"))","v":"2019-01-06"},null,null,{"$f":"IF(DAY(FebSo1)=1,\"\",IF(AND(YEAR(FebSo1+1)=KalenderJahr,MONTH(FebSo1+1)=2),FebSo1+1,\"\"))","v":""},{"$f":"IF(DAY(FebSo1)=1,\"\",IF(AND(YEAR(FebSo1+2)=KalenderJahr,MONTH(FebSo1+2)=2),FebSo1+2,\"\"))","v":""},{"$f":"IF(DAY(FebSo1)=1,\"\",IF(AND(YEAR(FebSo1+3)=KalenderJahr,MONTH(FebSo1+3)=2),FebSo1+3,\"\"))","v":""},{"$f":"IF(DAY(FebSo1)=1,\"\",IF(AND(YEAR(FebSo1+4)=KalenderJahr,MONTH(FebSo1+4)=2),FebSo1+4,\"\"))","v":""},{"$f":"IF(DAY(FebSo1)=1,\"\",IF(AND(YEAR(FebSo1+5)=KalenderJahr,MONTH(FebSo1+5)=2),FebSo1+5,\"\"))","v":"2019-02-01"},{"$f":"IF(DAY(FebSo1)=1,\"\",IF(AND(YEAR(FebSo1+6)=KalenderJahr,MONTH(FebSo1+6)=2),FebSo1+6,\"\"))","v":"2019-02-02"},{"$f":"IF(DAY(FebSo1)=1,IF(AND(YEAR(FebSo1)=KalenderJahr,MONTH(FebSo1)=2),FebSo1,\"\"),IF(AND(YEAR(FebSo1+7)=KalenderJahr,MONTH(FebSo1+7)=2),FebSo1+7,\"\"))","v":"2019-02-03"},null,null,{"$f":"IF(DAY(MrzSo1)=1,\"\",IF(AND(YEAR(MrzSo1+1)=KalenderJahr,MONTH(MrzSo1+1)=3),MrzSo1+1,\"\"))","v":""},{"$f":"IF(DAY(MrzSo1)=1,\"\",IF(AND(YEAR(MrzSo1+2)=KalenderJahr,MONTH(MrzSo1+2)=3),MrzSo1+2,\"\"))","v":""},{"$f":"IF(DAY(MrzSo1)=1,\"\",IF(AND(YEAR(MrzSo1+3)=KalenderJahr,MONTH(MrzSo1+3)=3),MrzSo1+3,\"\"))","v":""},{"$f":"IF(DAY(MrzSo1)=1,\"\",IF(AND(YEAR(MrzSo1+4)=KalenderJahr,MONTH(MrzSo1+4)=3),MrzSo1+4,\"\"))","v":""},{"$f":"IF(DAY(MrzSo1)=1,\"\",IF(AND(YEAR(MrzSo1+5)=KalenderJahr,MONTH(MrzSo1+5)=3),MrzSo1+5,\"\"))","v":"2019-03-01"},{"$f":"IF(DAY(MrzSo1)=1,\"\",IF(AND(YEAR(MrzSo1+6)=KalenderJahr,MONTH(MrzSo1+6)=3),MrzSo1+6,\"\"))","v":"2019-03-02"},{"$f":"IF(DAY(MrzSo1)=1,IF(AND(YEAR(MrzSo1)=KalenderJahr,MONTH(MrzSo1)=3),MrzSo1,\"\"),IF(AND(YEAR(MrzSo1+7)=KalenderJahr,MONTH(MrzSo1+7)=3),MrzSo1+7,\"\"))","v":"2019-03-03"},null,null,{"$f":"IF(DAY(AprSo1)=1,\"\",IF(AND(YEAR(AprSo1+1)=KalenderJahr,MONTH(AprSo1+1)=4),AprSo1+1,\"\"))","v":"2019-04-01"},{"$f":"IF(DAY(AprSo1)=1,\"\",IF(AND(YEAR(AprSo1+2)=KalenderJahr,MONTH(AprSo1+2)=4),AprSo1+2,\"\"))","v":"2019-04-02"},{"$f":"IF(DAY(AprSo1)=1,\"\",IF(AND(YEAR(AprSo1+3)=KalenderJahr,MONTH(AprSo1+3)=4),AprSo1+3,\"\"))","v":"2019-04-03"},{"$f":"IF(DAY(AprSo1)=1,\"\",IF(AND(YEAR(AprSo1+4)=KalenderJahr,MONTH(AprSo1+4)=4),AprSo1+4,\"\"))","v":"2019-04-04"},{"$f":"IF(DAY(AprSo1)=1,\"\",IF(AND(YEAR(AprSo1+5)=KalenderJahr,MONTH(AprSo1+5)=4),AprSo1+5,\"\"))","v":"2019-04-05"},{"$f":"IF(DAY(AprSo1)=1,\"\",IF(AND(YEAR(AprSo1+6)=KalenderJahr,MONTH(AprSo1+6)=4),AprSo1+6,\"\"))","v":"2019-04-06"},{"$f":"IF(DAY(AprSo1)=1,IF(AND(YEAR(AprSo1)=KalenderJahr,MONTH(AprSo1)=4),AprSo1,\"\"),IF(AND(YEAR(AprSo1+7)=KalenderJahr,MONTH(AprSo1+7)=4),AprSo1+7,\"\"))","v":"2019-04-07"}]
[null,null,{"$f":"IF(DAY(JanSo1)=1,IF(AND(YEAR(JanSo1+1)=KalenderJahr,MONTH(JanSo1+1)=1),JanSo1+1,\"\"),IF(AND(YEAR(JanSo1+8)=KalenderJahr,MONTH(JanSo1+8)=1),JanSo1+8,\"\"))","v":"2019-01-07"},{"$f":"IF(DAY(JanSo1)=1,IF(AND(YEAR(JanSo1+2)=KalenderJahr,MONTH(JanSo1+2)=1),JanSo1+2,\"\"),IF(AND(YEAR(JanSo1+9)=KalenderJahr,MONTH(JanSo1+9)=1),JanSo1+9,\"\"))","v":"2019-01-08"},{"$f":"IF(DAY(JanSo1)=1,IF(AND(YEAR(JanSo1+3)=KalenderJahr,MONTH(JanSo1+3)=1),JanSo1+3,\"\"),IF(AND(YEAR(JanSo1+10)=KalenderJahr,MONTH(JanSo1+10)=1),JanSo1+10,\"\"))","v":"2019-01-09"},{"$f":"IF(DAY(JanSo1)=1,IF(AND(YEAR(JanSo1+4)=KalenderJahr,MONTH(JanSo1+4)=1),JanSo1+4,\"\"),IF(AND(YEAR(JanSo1+11)=KalenderJahr,MONTH(JanSo1+11)=1),JanSo1+11,\"\"))","v":"2019-01-10"},{"$f":"IF(DAY(JanSo1)=1,IF(AND(YEAR(JanSo1+5)=KalenderJahr,MONTH(JanSo1+5)=1),JanSo1+5,\"\"),IF(AND(YEAR(JanSo1+12)=KalenderJahr,MONTH(JanSo1+12)=1),JanSo1+12,\"\"))","v":"2019-01-11"},{"$f":"IF(DAY(JanSo1)=1,IF(AND(YEAR(JanSo1+6)=KalenderJahr,MONTH(JanSo1+6)=1),JanSo1+6,\"\"),IF(AND(YEAR(JanSo1+13)=KalenderJahr,MONTH(JanSo1+13)=1),JanSo1+13,\"\"))","v":"2019-01-12"},{"$f":"IF(DAY(JanSo1)=1,IF(AND(YEAR(JanSo1+7)=KalenderJahr,MONTH(JanSo1+7)=1),JanSo1+7,\"\"),IF(AND(YEAR(JanSo1+14)=KalenderJahr,MONTH(JanSo1+14)=1),JanSo1+14,\"\"))","v":"2019-01-13"},null,null,{"$f":"IF(DAY(FebSo1)=1,IF(AND(YEAR(FebSo1+1)=KalenderJahr,MONTH(FebSo1+1)=2),FebSo1+1,\"\"),IF(AND(YEAR(FebSo1+8)=KalenderJahr,MONTH(FebSo1+8)=2),FebSo1+8,\"\"))","v":"2019-02-04"},{"$f":"IF(DAY(FebSo1)=1,IF(AND(YEAR(FebSo1+2)=KalenderJahr,MONTH(FebSo1+2)=2),FebSo1+2,\"\"),IF(AND(YEAR(FebSo1+9)=KalenderJahr,MONTH(FebSo1+9)=2),FebSo1+9,\"\"))","v":"2019-02-05"},{"$f":"IF(DAY(FebSo1)=1,IF(AND(YEAR(FebSo1+3)=KalenderJahr,MONTH(FebSo1+3)=2),FebSo1+3,\"\"),IF(AND(YEAR(FebSo1+10)=KalenderJahr,MONTH(FebSo1+10)=2),FebSo1+10,\"\"))","v":"2019-02-06"},{"$f":"IF(DAY(FebSo1)=1,IF(AND(YEAR(FebSo1+4)=KalenderJahr,MONTH(FebSo1+4)=2),FebSo1+4,\"\"),IF(AND(YEAR(FebSo1+11)=KalenderJahr,MONTH(FebSo1+11)=2),FebSo1+11,\"\"))","v":"2019-02-07"},{"$f":"IF(DAY(FebSo1)=1,IF(AND(YEAR(FebSo1+5)=KalenderJahr,MONTH(FebSo1+5)=2),FebSo1+5,\"\"),IF(AND(YEAR(FebSo1+12)=KalenderJahr,MONTH(FebSo1+12)=2),FebSo1+12,\"\"))","v":"2019-02-08"},{"$f":"IF(DAY(FebSo1)=1,IF(AND(YEAR(FebSo1+6)=KalenderJahr,MONTH(FebSo1+6)=2),FebSo1+6,\"\"),IF(AND(YEAR(FebSo1+13)=KalenderJahr,MONTH(FebSo1+13)=2),FebSo1+13,\"\"))","v":"2019-02-09"},{"$f":"IF(DAY(FebSo1)=1,IF(AND(YEAR(FebSo1+7)=KalenderJahr,MONTH(FebSo1+7)=2),FebSo1+7,\"\"),IF(AND(YEAR(FebSo1+14)=KalenderJahr,MONTH(FebSo1+14)=2),FebSo1+14,\"\"))","v":"2019-02-10"},null,null,{"$f":"IF(DAY(MrzSo1)=1,IF(AND(YEAR(MrzSo1+1)=KalenderJahr,MONTH(MrzSo1+1)=3),MrzSo1+1,\"\"),IF(AND(YEAR(MrzSo1+8)=KalenderJahr,MONTH(MrzSo1+8)=3),MrzSo1+8,\"\"))","v":"2019-03-04"},{"$f":"IF(DAY(MrzSo1)=1,IF(AND(YEAR(MrzSo1+2)=KalenderJahr,MONTH(MrzSo1+2)=3),MrzSo1+2,\"\"),IF(AND(YEAR(MrzSo1+9)=KalenderJahr,MONTH(MrzSo1+9)=3),MrzSo1+9,\"\"))","v":"2019-03-05"},{"$f":"IF(DAY(MrzSo1)=1,IF(AND(YEAR(MrzSo1+3)=KalenderJahr,MONTH(MrzSo1+3)=3),MrzSo1+3,\"\"),IF(AND(YEAR(MrzSo1+10)=KalenderJahr,MONTH(MrzSo1+10)=3),MrzSo1+10,\"\"))","v":"2019-03-06"},{"$f":"IF(DAY(MrzSo1)=1,IF(AND(YEAR(MrzSo1+4)=KalenderJahr,MONTH(MrzSo1+4)=3),MrzSo1+4,\"\"),IF(AND(YEAR(MrzSo1+11)=KalenderJahr,MONTH(MrzSo1+11)=3),MrzSo1+11,\"\"))","v":"2019-03-07"},{"$f":"IF(DAY(MrzSo1)=1,IF(AND(YEAR(MrzSo1+5)=KalenderJahr,MONTH(MrzSo1+5)=3),MrzSo1+5,\"\"),IF(AND(YEAR(MrzSo1+12)=KalenderJahr,MONTH(MrzSo1+12)=3),MrzSo1+12,\"\"))","v":"2019-03-08"},{"$f":"IF(DAY(MrzSo1)=1,IF(AND(YEAR(MrzSo1+6)=KalenderJahr,MONTH(MrzSo1+6)=3),MrzSo1+6,\"\"),IF(AND(YEAR(MrzSo1+13)=KalenderJahr,MONTH(MrzSo1+13)=3),MrzSo1+13,\"\"))","v":"2019-03-09"},{"$f":"IF(DAY(MrzSo1)=1,IF(AND(YEAR(MrzSo1+7)=KalenderJahr,MONTH(MrzSo1+7)=3),MrzSo1+7,\"\"),IF(AND(YEAR(MrzSo1+14)=KalenderJahr,MONTH(MrzSo1+14)=3),MrzSo1+14,\"\"))","v":"2019-03-10"},null,null,{"$f":"IF(DAY(AprSo1)=1,IF(AND(YEAR(AprSo1+1)=KalenderJahr,MONTH(AprSo1+1)=4),AprSo1+1,\"\"),IF(AND(YEAR(AprSo1+8)=KalenderJahr,MONTH(AprSo1+8)=4),AprSo1+8,\"\"))","v":"2019-04-08"},{"$f":"IF(DAY(AprSo1)=1,IF(AND(YEAR(AprSo1+2)=KalenderJahr,MONTH(AprSo1+2)=4),AprSo1+2,\"\"),IF(AND(YEAR(AprSo1+9)=KalenderJahr,MONTH(AprSo1+9)=4),AprSo1+9,\"\"))","v":"2019-04-09"},{"$f":"IF(DAY(AprSo1)=1,IF(AND(YEAR(AprSo1+3)=KalenderJahr,MONTH(AprSo1+3)=4),AprSo1+3,\"\"),IF(AND(YEAR(AprSo1+10)=KalenderJahr,MONTH(AprSo1+10)=4),AprSo1+10,\"\"))","v":"2019-04-10"},{"$f":"IF(DAY(AprSo1)=1,IF(AND(YEAR(AprSo1+4)=KalenderJahr,MONTH(AprSo1+4)=4),AprSo1+4,\"\"),IF(AND(YEAR(AprSo1+11)=KalenderJahr,MONTH(AprSo1+11)=4),AprSo1+11,\"\"))","v":"2019-04-11"},{"$f":"IF(DAY(AprSo1)=1,IF(AND(YEAR(AprSo1+5)=KalenderJahr,MONTH(AprSo1+5)=4),AprSo1+5,\"\"),IF(AND(YEAR(AprSo1+12)=KalenderJahr,MONTH(AprSo1+12)=4),AprSo1+12,\"\"))","v":"2019-04-12"},{"$f":"IF(DAY(AprSo1)=1,IF(AND(YEAR(AprSo1+6)=KalenderJahr,MONTH(AprSo1+6)=4),AprSo1+6,\"\"),IF(AND(YEAR(AprSo1+13)=KalenderJahr,MONTH(AprSo1+13)=4),AprSo1+13,\"\"))","v":"2019-04-13"},{"$f":"IF(DAY(AprSo1)=1,IF(AND(YEAR(AprSo1+7)=KalenderJahr,MONTH(AprSo1+7)=4),AprSo1+7,\"\"),IF(AND(YEAR(AprSo1+14)=KalenderJahr,MONTH(AprSo1+14)=4),AprSo1+14,\"\"))","v":"2019-04-14"}]
[null,null,{"$f":"IF(DAY(JanSo1)=1,IF(AND(YEAR(JanSo1+8)=KalenderJahr,MONTH(JanSo1+8)=1),JanSo1+8,\"\"),IF(AND(YEAR(JanSo1+15)=KalenderJahr,MONTH(JanSo1+15)=1),JanSo1+15,\"\"))","v":"2019-01-14"},{"$f":"IF(DAY(JanSo1)=1,IF(AND(YEAR(JanSo1+9)=KalenderJahr,MONTH(JanSo1+9)=1),JanSo1+9,\"\"),IF(AND(YEAR(JanSo1+16)=KalenderJahr,MONTH(JanSo1+16)=1),JanSo1+16,\"\"))","v":"2019-01-15"},{"$f":"IF(DAY(JanSo1)=1,IF(AND(YEAR(JanSo1+10)=KalenderJahr,MONTH(JanSo1+10)=1),JanSo1+10,\"\"),IF(AND(YEAR(JanSo1+17)=KalenderJahr,MONTH(JanSo1+17)=1),JanSo1+17,\"\"))","v":"2019-01-16"},{"$f":"IF(DAY(JanSo1)=1,IF(AND(YEAR(JanSo1+11)=KalenderJahr,MONTH(JanSo1+11)=1),JanSo1+11,\"\"),IF(AND(YEAR(JanSo1+18)=KalenderJahr,MONTH(JanSo1+18)=1),JanSo1+18,\"\"))","v":"2019-01-17"},{"$f":"IF(DAY(JanSo1)=1,IF(AND(YEAR(JanSo1+12)=KalenderJahr,MONTH(JanSo1+12)=1),JanSo1+12,\"\"),IF(AND(YEAR(JanSo1+19)=KalenderJahr,MONTH(JanSo1+19)=1),JanSo1+19,\"\"))","v":"2019-01-18"},{"$f":"IF(DAY(JanSo1)=1,IF(AND(YEAR(JanSo1+13)=KalenderJahr,MONTH(JanSo1+13)=1),JanSo1+13,\"\"),IF(AND(YEAR(JanSo1+20)=KalenderJahr,MONTH(JanSo1+20)=1),JanSo1+20,\"\"))","v":"2019-01-19"},{"$f":"IF(DAY(JanSo1)=1,IF(AND(YEAR(JanSo1+14)=KalenderJahr,MONTH(JanSo1+14)=1),JanSo1+14,\"\"),IF(AND(YEAR(JanSo1+21)=KalenderJahr,MONTH(JanSo1+21)=1),JanSo1+21,\"\"))","v":"2019-01-20"},null,null,{"$f":"IF(DAY(FebSo1)=1,IF(AND(YEAR(FebSo1+8)=KalenderJahr,MONTH(FebSo1+8)=2),FebSo1+8,\"\"),IF(AND(YEAR(FebSo1+15)=KalenderJahr,MONTH(FebSo1+15)=2),FebSo1+15,\"\"))","v":"2019-02-11"},{"$f":"IF(DAY(FebSo1)=1,IF(AND(YEAR(FebSo1+9)=KalenderJahr,MONTH(FebSo1+9)=2),FebSo1+9,\"\"),IF(AND(YEAR(FebSo1+16)=KalenderJahr,MONTH(FebSo1+16)=2),FebSo1+16,\"\"))","v":"2019-02-12"},{"$f":"IF(DAY(FebSo1)=1,IF(AND(YEAR(FebSo1+10)=KalenderJahr,MONTH(FebSo1+10)=2),FebSo1+10,\"\"),IF(AND(YEAR(FebSo1+17)=KalenderJahr,MONTH(FebSo1+17)=2),FebSo1+17,\"\"))","v":"2019-02-13"},{"$f":"IF(DAY(FebSo1)=1,IF(AND(YEAR(FebSo1+11)=KalenderJahr,MONTH(FebSo1+11)=2),FebSo1+11,\"\"),IF(AND(YEAR(FebSo1+18)=KalenderJahr,MONTH(FebSo1+18)=2),FebSo1+18,\"\"))","v":"2019-02-14"},{"$f":"IF(DAY(FebSo1)=1,IF(AND(YEAR(FebSo1+12)=KalenderJahr,MONTH(FebSo1+12)=2),FebSo1+12,\"\"),IF(AND(YEAR(FebSo1+19)=KalenderJahr,MONTH(FebSo1+19)=2),FebSo1+19,\"\"))","v":"2019-02-15"},{"$f":"IF(DAY(FebSo1)=1,IF(AND(YEAR(FebSo1+13)=KalenderJahr,MONTH(FebSo1+13)=2),FebSo1+13,\"\"),IF(AND(YEAR(FebSo1+20)=KalenderJahr,MONTH(FebSo1+20)=2),FebSo1+20,\"\"))","v":"2019-02-16"},{"$f":"IF(DAY(FebSo1)=1,IF(AND(YEAR(FebSo1+14)=KalenderJahr,MONTH(FebSo1+14)=2),FebSo1+14,\"\"),IF(AND(YEAR(FebSo1+21)=KalenderJahr,MONTH(FebSo1+21)=2),FebSo1+21,\"\"))","v":"2019-02-17"},null,null,{"$f":"IF(DAY(MrzSo1)=1,IF(AND(YEAR(MrzSo1+8)=KalenderJahr,MONTH(MrzSo1+8)=3),MrzSo1+8,\"\"),IF(AND(YEAR(MrzSo1+15)=KalenderJahr,MONTH(MrzSo1+15)=3),MrzSo1+15,\"\"))","v":"2019-03-11"},{"$f":"IF(DAY(MrzSo1)=1,IF(AND(YEAR(MrzSo1+9)=KalenderJahr,MONTH(MrzSo1+9)=3),MrzSo1+9,\"\"),IF(AND(YEAR(MrzSo1+16)=KalenderJahr,MONTH(MrzSo1+16)=3),MrzSo1+16,\"\"))","v":"2019-03-12"},{"$f":"IF(DAY(MrzSo1)=1,IF(AND(YEAR(MrzSo1+10)=KalenderJahr,MONTH(MrzSo1+10)=3),MrzSo1+10,\"\"),IF(AND(YEAR(MrzSo1+17)=KalenderJahr,MONTH(MrzSo1+17)=3),MrzSo1+17,\"\"))","v":"2019-03-13"},{"$f":"IF(DAY(MrzSo1)=1,IF(AND(YEAR(MrzSo1+11)=KalenderJahr,MONTH(MrzSo1+11)=3),MrzSo1+11,\"\"),IF(AND(YEAR(MrzSo1+18)=KalenderJahr,MONTH(MrzSo1+18)=3),MrzSo1+18,\"\"))","v":"2019-03-14"},{"$f":"IF(DAY(MrzSo1)=1,IF(AND(YEAR(MrzSo1+12)=KalenderJahr,MONTH(MrzSo1+12)=3),MrzSo1+12,\"\"),IF(AND(YEAR(MrzSo1+19)=KalenderJahr,MONTH(MrzSo1+19)=3),MrzSo1+19,\"\"))","v":"2019-03-15"},{"$f":"IF(DAY(MrzSo1)=1,IF(AND(YEAR(MrzSo1+13)=KalenderJahr,MONTH(MrzSo1+13)=3),MrzSo1+13,\"\"),IF(AND(YEAR(MrzSo1+20)=KalenderJahr,MONTH(MrzSo1+20)=3),MrzSo1+20,\"\"))","v":"2019-03-16"},{"$f":"IF(DAY(MrzSo1)=1,IF(AND(YEAR(MrzSo1+14)=KalenderJahr,MONTH(MrzSo1+14)=3),MrzSo1+14,\"\"),IF(AND(YEAR(MrzSo1+21)=KalenderJahr,MONTH(MrzSo1+21)=3),MrzSo1+21,\"\"))","v":"2019-03-17"},null,null,{"$f":"IF(DAY(AprSo1)=1,IF(AND(YEAR(AprSo1+8)=KalenderJahr,MONTH(AprSo1+8)=4),AprSo1+8,\"\"),IF(AND(YEAR(AprSo1+15)=KalenderJahr,MONTH(AprSo1+15)=4),AprSo1+15,\"\"))","v":"2019-04-15"},{"$f":"IF(DAY(AprSo1)=1,IF(AND(YEAR(AprSo1+9)=KalenderJahr,MONTH(AprSo1+9)=4),AprSo1+9,\"\"),IF(AND(YEAR(AprSo1+16)=KalenderJahr,MONTH(AprSo1+16)=4),AprSo1+16,\"\"))","v":"2019-04-16"},{"$f":"IF(DAY(AprSo1)=1,IF(AND(YEAR(AprSo1+10)=KalenderJahr,MONTH(AprSo1+10)=4),AprSo1+10,\"\"),IF(AND(YEAR(AprSo1+17)=KalenderJahr,MONTH(AprSo1+17)=4),AprSo1+17,\"\"))","v":"2019-04-17"},{"$f":"IF(DAY(AprSo1)=1,IF(AND(YEAR(AprSo1+11)=KalenderJahr,MONTH(AprSo1+11)=4),AprSo1+11,\"\"),IF(AND(YEAR(AprSo1+18)=KalenderJahr,MONTH(AprSo1+18)=4),AprSo1+18,\"\"))","v":"2019-04-18"},{"$f":"IF(DAY(AprSo1)=1,IF(AND(YEAR(AprSo1+12)=KalenderJahr,MONTH(AprSo1+12)=4),AprSo1+12,\"\"),IF(AND(YEAR(AprSo1+19)=KalenderJahr,MONTH(AprSo1+19)=4),AprSo1+19,\"\"))","v":"2019-04-19"},{"$f":"IF(DAY(AprSo1)=1,IF(AND(YEAR(AprSo1+13)=KalenderJahr,MONTH(AprSo1+13)=4),AprSo1+13,\"\"),IF(AND(YEAR(AprSo1+20)=KalenderJahr,MONTH(AprSo1+20)=4),AprSo1+20,\"\"))","v":"2019-04-20"},{"$f":"IF(DAY(AprSo1)=1,IF(AND(YEAR(AprSo1+14)=KalenderJahr,MONTH(AprSo1+14)=4),AprSo1+14,\"\"),IF(AND(YEAR(AprSo1+21)=KalenderJahr,MONTH(AprSo1+21)=4),AprSo1+21,\"\"))","v":"2019-04-21"}]
[null,null,{"$f":"IF(DAY(JanSo1)=1,IF(AND(YEAR(JanSo1+15)=KalenderJahr,MONTH(JanSo1+15)=1),JanSo1+15,\"\"),IF(AND(YEAR(JanSo1+22)=KalenderJahr,MONTH(JanSo1+22)=1),JanSo1+22,\"\"))","v":"2019-01-21"},{"$f":"IF(DAY(JanSo1)=1,IF(AND(YEAR(JanSo1+16)=KalenderJahr,MONTH(JanSo1+16)=1),JanSo1+16,\"\"),IF(AND(YEAR(JanSo1+23)=KalenderJahr,MONTH(JanSo1+23)=1),JanSo1+23,\"\"))","v":"2019-01-22"},{"$f":"IF(DAY(JanSo1)=1,IF(AND(YEAR(JanSo1+17)=KalenderJahr,MONTH(JanSo1+17)=1),JanSo1+17,\"\"),IF(AND(YEAR(JanSo1+24)=KalenderJahr,MONTH(JanSo1+24)=1),JanSo1+24,\"\"))","v":"2019-01-23"},{"$f":"IF(DAY(JanSo1)=1,IF(AND(YEAR(JanSo1+18)=KalenderJahr,MONTH(JanSo1+18)=1),JanSo1+18,\"\"),IF(AND(YEAR(JanSo1+25)=KalenderJahr,MONTH(JanSo1+25)=1),JanSo1+25,\"\"))","v":"2019-01-24"},{"$f":"IF(DAY(JanSo1)=1,IF(AND(YEAR(JanSo1+19)=KalenderJahr,MONTH(JanSo1+19)=1),JanSo1+19,\"\"),IF(AND(YEAR(JanSo1+26)=KalenderJahr,MONTH(JanSo1+26)=1),JanSo1+26,\"\"))","v":"2019-01-25"},{"$f":"IF(DAY(JanSo1)=1,IF(AND(YEAR(JanSo1+20)=KalenderJahr,MONTH(JanSo1+20)=1),JanSo1+20,\"\"),IF(AND(YEAR(JanSo1+27)=KalenderJahr,MONTH(JanSo1+27)=1),JanSo1+27,\"\"))","v":"2019-01-26"},{"$f":"IF(DAY(JanSo1)=1,IF(AND(YEAR(JanSo1+21)=KalenderJahr,MONTH(JanSo1+21)=1),JanSo1+21,\"\"),IF(AND(YEAR(JanSo1+28)=KalenderJahr,MONTH(JanSo1+28)=1),JanSo1+28,\"\"))","v":"2019-01-27"},null,null,{"$f":"IF(DAY(FebSo1)=1,IF(AND(YEAR(FebSo1+15)=KalenderJahr,MONTH(FebSo1+15)=2),FebSo1+15,\"\"),IF(AND(YEAR(FebSo1+22)=KalenderJahr,MONTH(FebSo1+22)=2),FebSo1+22,\"\"))","v":"2019-02-18"},{"$f":"IF(DAY(FebSo1)=1,IF(AND(YEAR(FebSo1+16)=KalenderJahr,MONTH(FebSo1+16)=2),FebSo1+16,\"\"),IF(AND(YEAR(FebSo1+23)=KalenderJahr,MONTH(FebSo1+23)=2),FebSo1+23,\"\"))","v":"2019-02-19"},{"$f":"IF(DAY(FebSo1)=1,IF(AND(YEAR(FebSo1+17)=KalenderJahr,MONTH(FebSo1+17)=2),FebSo1+17,\"\"),IF(AND(YEAR(FebSo1+24)=KalenderJahr,MONTH(FebSo1+24)=2),FebSo1+24,\"\"))","v":"2019-02-20"},{"$f":"IF(DAY(FebSo1)=1,IF(AND(YEAR(FebSo1+18)=KalenderJahr,MONTH(FebSo1+18)=2),FebSo1+18,\"\"),IF(AND(YEAR(FebSo1+25)=KalenderJahr,MONTH(FebSo1+25)=2),FebSo1+25,\"\"))","v":"2019-02-21"},{"$f":"IF(DAY(FebSo1)=1,IF(AND(YEAR(FebSo1+19)=KalenderJahr,MONTH(FebSo1+19)=2),FebSo1+19,\"\"),IF(AND(YEAR(FebSo1+26)=KalenderJahr,MONTH(FebSo1+26)=2),FebSo1+26,\"\"))","v":"2019-02-22"},{"$f":"IF(DAY(FebSo1)=1,IF(AND(YEAR(FebSo1+20)=KalenderJahr,MONTH(FebSo1+20)=2),FebSo1+20,\"\"),IF(AND(YEAR(FebSo1+27)=KalenderJahr,MONTH(FebSo1+27)=2),FebSo1+27,\"\"))","v":"2019-02-23"},{"$f":"IF(DAY(FebSo1)=1,IF(AND(YEAR(FebSo1+21)=KalenderJahr,MONTH(FebSo1+21)=2),FebSo1+21,\"\"),IF(AND(YEAR(FebSo1+28)=KalenderJahr,MONTH(FebSo1+28)=2),FebSo1+28,\"\"))","v":"2019-02-24"},null,null,{"$f":"IF(DAY(MrzSo1)=1,IF(AND(YEAR(MrzSo1+15)=KalenderJahr,MONTH(MrzSo1+15)=3),MrzSo1+15,\"\"),IF(AND(YEAR(MrzSo1+22)=KalenderJahr,MONTH(MrzSo1+22)=3),MrzSo1+22,\"\"))","v":"2019-03-18"},{"$f":"IF(DAY(MrzSo1)=1,IF(AND(YEAR(MrzSo1+16)=KalenderJahr,MONTH(MrzSo1+16)=3),MrzSo1+16,\"\"),IF(AND(YEAR(MrzSo1+23)=KalenderJahr,MONTH(MrzSo1+23)=3),MrzSo1+23,\"\"))","v":"2019-03-19"},{"$f":"IF(DAY(MrzSo1)=1,IF(AND(YEAR(MrzSo1+17)=KalenderJahr,MONTH(MrzSo1+17)=3),MrzSo1+17,\"\"),IF(AND(YEAR(MrzSo1+24)=KalenderJahr,MONTH(MrzSo1+24)=3),MrzSo1+24,\"\"))","v":"2019-03-20"},{"$f":"IF(DAY(MrzSo1)=1,IF(AND(YEAR(MrzSo1+18)=KalenderJahr,MONTH(MrzSo1+18)=3),MrzSo1+18,\"\"),IF(AND(YEAR(MrzSo1+25)=KalenderJahr,MONTH(MrzSo1+25)=3),MrzSo1+25,\"\"))","v":"2019-03-21"},{"$f":"IF(DAY(MrzSo1)=1,IF(AND(YEAR(MrzSo1+19)=KalenderJahr,MONTH(MrzSo1+19)=3),MrzSo1+19,\"\"),IF(AND(YEAR(MrzSo1+26)=KalenderJahr,MONTH(MrzSo1+26)=3),MrzSo1+26,\"\"))","v":"2019-03-22"},{"$f":"IF(DAY(MrzSo1)=1,IF(AND(YEAR(MrzSo1+20)=KalenderJahr,MONTH(MrzSo1+20)=3),MrzSo1+20,\"\"),IF(AND(YEAR(MrzSo1+27)=KalenderJahr,MONTH(MrzSo1+27)=3),MrzSo1+27,\"\"))","v":"2019-03-23"},{"$f":"IF(DAY(MrzSo1)=1,IF(AND(YEAR(MrzSo1+21)=KalenderJahr,MONTH(MrzSo1+21)=3),MrzSo1+21,\"\"),IF(AND(YEAR(MrzSo1+28)=KalenderJahr,MONTH(MrzSo1+28)=3),MrzSo1+28,\"\"))","v":"2019-03-24"},null,null,{"$f":"IF(DAY(AprSo1)=1,IF(AND(YEAR(AprSo1+15)=KalenderJahr,MONTH(AprSo1+15)=4),AprSo1+15,\"\"),IF(AND(YEAR(AprSo1+22)=KalenderJahr,MONTH(AprSo1+22)=4),AprSo1+22,\"\"))","v":"2019-04-22"},{"$f":"IF(DAY(AprSo1)=1,IF(AND(YEAR(AprSo1+16)=KalenderJahr,MONTH(AprSo1+16)=4),AprSo1+16,\"\"),IF(AND(YEAR(AprSo1+23)=KalenderJahr,MONTH(AprSo1+23)=4),AprSo1+23,\"\"))","v":"2019-04-23"},{"$f":"IF(DAY(AprSo1)=1,IF(AND(YEAR(AprSo1+17)=KalenderJahr,MONTH(AprSo1+17)=4),AprSo1+17,\"\"),IF(AND(YEAR(AprSo1+24)=KalenderJahr,MONTH(AprSo1+24)=4),AprSo1+24,\"\"))","v":"2019-04-24"},{"$f":"IF(DAY(AprSo1)=1,IF(AND(YEAR(AprSo1+18)=KalenderJahr,MONTH(AprSo1+18)=4),AprSo1+18,\"\"),IF(AND(YEAR(AprSo1+25)=KalenderJahr,MONTH(AprSo1+25)=4),AprSo1+25,\"\"))","v":"2019-04-25"},{"$f":"IF(DAY(AprSo1)=1,IF(AND(YEAR(AprSo1+19)=KalenderJahr,MONTH(AprSo1+19)=4),AprSo1+19,\"\"),IF(AND(YEAR(AprSo1+26)=KalenderJahr,MONTH(AprSo1+26)=4),AprSo1+26,\"\"))","v":"2019-04-26"},{"$f":"IF(DAY(AprSo1)=1,IF(AND(YEAR(AprSo1+20)=KalenderJahr,MONTH(AprSo1+20)=4),AprSo1+20,\"\"),IF(AND(YEAR(AprSo1+27)=KalenderJahr,MONTH(AprSo1+27)=4),AprSo1+27,\"\"))","v":"2019-04-27"},{"$f":"IF(DAY(AprSo1)=1,IF(AND(YEAR(AprSo1+21)=KalenderJahr,MONTH(AprSo1+21)=4),AprSo1+21,\"\"),IF(AND(YEAR(AprSo1+28)=KalenderJahr,MONTH(AprSo1+28)=4),AprSo1+28,\"\"))","v":"2019-04-28"}]
[null,null,{"$f":"IF(DAY(JanSo1)=1,IF(AND(YEAR(JanSo1+22)=KalenderJahr,MONTH(JanSo1+22)=1),JanSo1+22,\"\"),IF(AND(YEAR(JanSo1+29)=KalenderJahr,MONTH(JanSo1+29)=1),JanSo1+29,\"\"))","v":"2019-01-28"},{"$f":"IF(DAY(JanSo1)=1,IF(AND(YEAR(JanSo1+23)=KalenderJahr,MONTH(JanSo1+23)=1),JanSo1+23,\"\"),IF(AND(YEAR(JanSo1+30)=KalenderJahr,MONTH(JanSo1+30)=1),JanSo1+30,\"\"))","v":"2019-01-29"},{"$f":"IF(DAY(JanSo1)=1,IF(AND(YEAR(JanSo1+24)=KalenderJahr,MONTH(JanSo1+24)=1),JanSo1+24,\"\"),IF(AND(YEAR(JanSo1+31)=KalenderJahr,MONTH(JanSo1+31)=1),JanSo1+31,\"\"))","v":"2019-01-30"},{"$f":"IF(DAY(JanSo1)=1,IF(AND(YEAR(JanSo1+25)=KalenderJahr,MONTH(JanSo1+25)=1),JanSo1+25,\"\"),IF(AND(YEAR(JanSo1+32)=KalenderJahr,MONTH(JanSo1+32)=1),JanSo1+32,\"\"))","v":"2019-01-31"},{"$f":"IF(DAY(JanSo1)=1,IF(AND(YEAR(JanSo1+26)=KalenderJahr,MONTH(JanSo1+26)=1),JanSo1+26,\"\"),IF(AND(YEAR(JanSo1+33)=KalenderJahr,MONTH(JanSo1+33)=1),JanSo1+33,\"\"))","v":""},{"$f":"IF(DAY(JanSo1)=1,IF(AND(YEAR(JanSo1+27)=KalenderJahr,MONTH(JanSo1+27)=1),JanSo1+27,\"\"),IF(AND(YEAR(JanSo1+34)=KalenderJahr,MONTH(JanSo1+34)=1),JanSo1+34,\"\"))","v":""},{"$f":"IF(DAY(JanSo1)=1,IF(AND(YEAR(JanSo1+28)=KalenderJahr,MONTH(JanSo1+28)=1),JanSo1+28,\"\"),IF(AND(YEAR(JanSo1+35)=KalenderJahr,MONTH(JanSo1+35)=1),JanSo1+35,\"\"))","v":""},null,null,{"$f":"IF(DAY(FebSo1)=1,IF(AND(YEAR(FebSo1+22)=KalenderJahr,MONTH(FebSo1+22)=2),FebSo1+22,\"\"),IF(AND(YEAR(FebSo1+29)=KalenderJahr,MONTH(FebSo1+29)=2),FebSo1+29,\"\"))","v":"2019-02-25"},{"$f":"IF(DAY(FebSo1)=1,IF(AND(YEAR(FebSo1+23)=KalenderJahr,MONTH(FebSo1+23)=2),FebSo1+23,\"\"),IF(AND(YEAR(FebSo1+30)=KalenderJahr,MONTH(FebSo1+30)=2),FebSo1+30,\"\"))","v":"2019-02-26"},{"$f":"IF(DAY(FebSo1)=1,IF(AND(YEAR(FebSo1+24)=KalenderJahr,MONTH(FebSo1+24)=2),FebSo1+24,\"\"),IF(AND(YEAR(FebSo1+31)=KalenderJahr,MONTH(FebSo1+31)=2),FebSo1+31,\"\"))","v":"2019-02-27"},{"$f":"IF(DAY(FebSo1)=1,IF(AND(YEAR(FebSo1+25)=KalenderJahr,MONTH(FebSo1+25)=2),FebSo1+25,\"\"),IF(AND(YEAR(FebSo1+32)=KalenderJahr,MONTH(FebSo1+32)=2),FebSo1+32,\"\"))","v":"2019-02-28"},{"$f":"IF(DAY(FebSo1)=1,IF(AND(YEAR(FebSo1+26)=KalenderJahr,MONTH(FebSo1+26)=2),FebSo1+26,\"\"),IF(AND(YEAR(FebSo1+33)=KalenderJahr,MONTH(FebSo1+33)=2),FebSo1+33,\"\"))","v":""},{"$f":"IF(DAY(FebSo1)=1,IF(AND(YEAR(FebSo1+27)=KalenderJahr,MONTH(FebSo1+27)=2),FebSo1+27,\"\"),IF(AND(YEAR(FebSo1+34)=KalenderJahr,MONTH(FebSo1+34)=2),FebSo1+34,\"\"))","v":""},{"$f":"IF(DAY(FebSo1)=1,IF(AND(YEAR(FebSo1+28)=KalenderJahr,MONTH(FebSo1+28)=2),FebSo1+28,\"\"),IF(AND(YEAR(FebSo1+35)=KalenderJahr,MONTH(FebSo1+35)=2),FebSo1+35,\"\"))","v":""},null,null,{"$f":"IF(DAY(MrzSo1)=1,IF(AND(YEAR(MrzSo1+22)=KalenderJahr,MONTH(MrzSo1+22)=3),MrzSo1+22,\"\"),IF(AND(YEAR(MrzSo1+29)=KalenderJahr,MONTH(MrzSo1+29)=3),MrzSo1+29,\"\"))","v":"2019-03-25"},{"$f":"IF(DAY(MrzSo1)=1,IF(AND(YEAR(MrzSo1+23)=KalenderJahr,MONTH(MrzSo1+23)=3),MrzSo1+23,\"\"),IF(AND(YEAR(MrzSo1+30)=KalenderJahr,MONTH(MrzSo1+30)=3),MrzSo1+30,\"\"))","v":"2019-03-26"},{"$f":"IF(DAY(MrzSo1)=1,IF(AND(YEAR(MrzSo1+24)=KalenderJahr,MONTH(MrzSo1+24)=3),MrzSo1+24,\"\"),IF(AND(YEAR(MrzSo1+31)=KalenderJahr,MONTH(MrzSo1+31)=3),MrzSo1+31,\"\"))","v":"2019-03-27"},{"$f":"IF(DAY(MrzSo1)=1,IF(AND(YEAR(MrzSo1+25)=KalenderJahr,MONTH(MrzSo1+25)=3),MrzSo1+25,\"\"),IF(AND(YEAR(MrzSo1+32)=KalenderJahr,MONTH(MrzSo1+32)=3),MrzSo1+32,\"\"))","v":"2019-03-28"},{"$f":"IF(DAY(MrzSo1)=1,IF(AND(YEAR(MrzSo1+26)=KalenderJahr,MONTH(MrzSo1+26)=3),MrzSo1+26,\"\"),IF(AND(YEAR(MrzSo1+33)=KalenderJahr,MONTH(MrzSo1+33)=3),MrzSo1+33,\"\"))","v":"2019-03-29"},{"$f":"IF(DAY(MrzSo1)=1,IF(AND(YEAR(MrzSo1+27)=KalenderJahr,MONTH(MrzSo1+27)=3),MrzSo1+27,\"\"),IF(AND(YEAR(MrzSo1+34)=KalenderJahr,MONTH(MrzSo1+34)=3),MrzSo1+34,\"\"))","v":"2019-03-30"},{"$f":"IF(DAY(MrzSo1)=1,IF(AND(YEAR(MrzSo1+28)=KalenderJahr,MONTH(MrzSo1+28)=3),MrzSo1+28,\"\"),IF(AND(YEAR(MrzSo1+35)=KalenderJahr,MONTH(MrzSo1+35)=3),MrzSo1+35,\"\"))","v":"2019-03-31"},null,null,{"$f":"IF(DAY(AprSo1)=1,IF(AND(YEAR(AprSo1+22)=KalenderJahr,MONTH(AprSo1+22)=4),AprSo1+22,\"\"),IF(AND(YEAR(AprSo1+29)=KalenderJahr,MONTH(AprSo1+29)=4),AprSo1+29,\"\"))","v":"2019-04-29"},{"$f":"IF(DAY(AprSo1)=1,IF(AND(YEAR(AprSo1+23)=KalenderJahr,MONTH(AprSo1+23)=4),AprSo1+23,\"\"),IF(AND(YEAR(AprSo1+30)=KalenderJahr,MONTH(AprSo1+30)=4),AprSo1+30,\"\"))","v":"2019-04-30"},{"$f":"IF(DAY(AprSo1)=1,IF(AND(YEAR(AprSo1+24)=KalenderJahr,MONTH(AprSo1+24)=4),AprSo1+24,\"\"),IF(AND(YEAR(AprSo1+31)=KalenderJahr,MONTH(AprSo1+31)=4),AprSo1+31,\"\"))","v":""},{"$f":"IF(DAY(AprSo1)=1,IF(AND(YEAR(AprSo1+25)=KalenderJahr,MONTH(AprSo1+25)=4),AprSo1+25,\"\"),IF(AND(YEAR(AprSo1+32)=KalenderJahr,MONTH(AprSo1+32)=4),AprSo1+32,\"\"))","v":""},{"$f":"IF(DAY(AprSo1)=1,IF(AND(YEAR(AprSo1+26)=KalenderJahr,MONTH(AprSo1+26)=4),AprSo1+26,\"\"),IF(AND(YEAR(AprSo1+33)=KalenderJahr,MONTH(AprSo1+33)=4),AprSo1+33,\"\"))","v":""},{"$f":"IF(DAY(AprSo1)=1,IF(AND(YEAR(AprSo1+27)=KalenderJahr,MONTH(AprSo1+27)=4),AprSo1+27,\"\"),IF(AND(YEAR(AprSo1+34)=KalenderJahr,MONTH(AprSo1+34)=4),AprSo1+34,\"\"))","v":""},{"$f":"IF(DAY(AprSo1)=1,IF(AND(YEAR(AprSo1+28)=KalenderJahr,MONTH(AprSo1+28)=4),AprSo1+28,\"\"),IF(AND(YEAR(AprSo1+35)=KalenderJahr,MONTH(AprSo1+35)=4),AprSo1+35,\"\"))","v":""}]
[null,null,{"$f":"IF(DAY(JanSo1)=1,IF(AND(YEAR(JanSo1+29)=KalenderJahr,MONTH(JanSo1+29)=1),JanSo1+29,\"\"),IF(AND(YEAR(JanSo1+36)=KalenderJahr,MONTH(JanSo1+36)=1),JanSo1+36,\"\"))","v":""},{"$f":"IF(DAY(JanSo1)=1,IF(AND(YEAR(JanSo1+30)=KalenderJahr,MONTH(JanSo1+30)=1),JanSo1+30,\"\"),IF(AND(YEAR(JanSo1+37)=KalenderJahr,MONTH(JanSo1+37)=1),JanSo1+37,\"\"))","v":""},{"$f":"IF(DAY(JanSo1)=1,IF(AND(YEAR(JanSo1+31)=KalenderJahr,MONTH(JanSo1+31)=1),JanSo1+31,\"\"),IF(AND(YEAR(JanSo1+38)=KalenderJahr,MONTH(JanSo1+38)=1),JanSo1+38,\"\"))","v":""},{"$f":"IF(DAY(JanSo1)=1,IF(AND(YEAR(JanSo1+32)=KalenderJahr,MONTH(JanSo1+32)=1),JanSo1+32,\"\"),IF(AND(YEAR(JanSo1+39)=KalenderJahr,MONTH(JanSo1+39)=1),JanSo1+39,\"\"))","v":""},{"$f":"IF(DAY(JanSo1)=1,IF(AND(YEAR(JanSo1+33)=KalenderJahr,MONTH(JanSo1+33)=1),JanSo1+33,\"\"),IF(AND(YEAR(JanSo1+40)=KalenderJahr,MONTH(JanSo1+40)=1),JanSo1+40,\"\"))","v":""},{"$f":"IF(DAY(JanSo1)=1,IF(AND(YEAR(JanSo1+34)=KalenderJahr,MONTH(JanSo1+34)=1),JanSo1+34,\"\"),IF(AND(YEAR(JanSo1+41)=KalenderJahr,MONTH(JanSo1+41)=1),JanSo1+41,\"\"))","v":""},{"$f":"IF(DAY(JanSo1)=1,IF(AND(YEAR(JanSo1+35)=KalenderJahr,MONTH(JanSo1+35)=1),JanSo1+35,\"\"),IF(AND(YEAR(JanSo1+42)=KalenderJahr,MONTH(JanSo1+42)=1),JanSo1+42,\"\"))","v":""},null,null,{"$f":"IF(DAY(FebSo1)=1,IF(AND(YEAR(FebSo1+29)=KalenderJahr,MONTH(FebSo1+29)=2),FebSo1+29,\"\"),IF(AND(YEAR(FebSo1+36)=KalenderJahr,MONTH(FebSo1+36)=2),FebSo1+36,\"\"))","v":""},{"$f":"IF(DAY(FebSo1)=1,IF(AND(YEAR(FebSo1+30)=KalenderJahr,MONTH(FebSo1+30)=2),FebSo1+30,\"\"),IF(AND(YEAR(FebSo1+37)=KalenderJahr,MONTH(FebSo1+37)=2),FebSo1+37,\"\"))","v":""},{"$f":"IF(DAY(FebSo1)=1,IF(AND(YEAR(FebSo1+31)=KalenderJahr,MONTH(FebSo1+31)=2),FebSo1+31,\"\"),IF(AND(YEAR(FebSo1+38)=KalenderJahr,MONTH(FebSo1+38)=2),FebSo1+38,\"\"))","v":""},{"$f":"IF(DAY(FebSo1)=1,IF(AND(YEAR(FebSo1+32)=KalenderJahr,MONTH(FebSo1+32)=2),FebSo1+32,\"\"),IF(AND(YEAR(FebSo1+39)=KalenderJahr,MONTH(FebSo1+39)=2),FebSo1+39,\"\"))","v":""},{"$f":"IF(DAY(FebSo1)=1,IF(AND(YEAR(FebSo1+33)=KalenderJahr,MONTH(FebSo1+33)=2),FebSo1+33,\"\"),IF(AND(YEAR(FebSo1+40)=KalenderJahr,MONTH(FebSo1+40)=2),FebSo1+40,\"\"))","v":""},{"$f":"IF(DAY(FebSo1)=1,IF(AND(YEAR(FebSo1+34)=KalenderJahr,MONTH(FebSo1+34)=2),FebSo1+34,\"\"),IF(AND(YEAR(FebSo1+41)=KalenderJahr,MONTH(FebSo1+41)=2),FebSo1+41,\"\"))","v":""},{"$f":"IF(DAY(FebSo1)=1,IF(AND(YEAR(FebSo1+35)=KalenderJahr,MONTH(FebSo1+35)=2),FebSo1+35,\"\"),IF(AND(YEAR(FebSo1+42)=KalenderJahr,MONTH(FebSo1+42)=2),FebSo1+42,\"\"))","v":""},null,null,{"$f":"IF(DAY(MrzSo1)=1,IF(AND(YEAR(MrzSo1+29)=KalenderJahr,MONTH(MrzSo1+29)=3),MrzSo1+29,\"\"),IF(AND(YEAR(MrzSo1+36)=KalenderJahr,MONTH(MrzSo1+36)=3),MrzSo1+36,\"\"))","v":""},{"$f":"IF(DAY(MrzSo1)=1,IF(AND(YEAR(MrzSo1+30)=KalenderJahr,MONTH(MrzSo1+30)=3),MrzSo1+30,\"\"),IF(AND(YEAR(MrzSo1+37)=KalenderJahr,MONTH(MrzSo1+37)=3),MrzSo1+37,\"\"))","v":""},{"$f":"IF(DAY(MrzSo1)=1,IF(AND(YEAR(MrzSo1+31)=KalenderJahr,MONTH(MrzSo1+31)=3),MrzSo1+31,\"\"),IF(AND(YEAR(MrzSo1+38)=KalenderJahr,MONTH(MrzSo1+38)=3),MrzSo1+38,\"\"))","v":""},{"$f":"IF(DAY(MrzSo1)=1,IF(AND(YEAR(MrzSo1+32)=KalenderJahr,MONTH(MrzSo1+32)=3),MrzSo1+32,\"\"),IF(AND(YEAR(MrzSo1+39)=KalenderJahr,MONTH(MrzSo1+39)=3),MrzSo1+39,\"\"))","v":""},{"$f":"IF(DAY(MrzSo1)=1,IF(AND(YEAR(MrzSo1+33)=KalenderJahr,MONTH(MrzSo1+33)=3),MrzSo1+33,\"\"),IF(AND(YEAR(MrzSo1+40)=KalenderJahr,MONTH(MrzSo1+40)=3),MrzSo1+40,\"\"))","v":""},{"$f":"IF(DAY(MrzSo1)=1,IF(AND(YEAR(MrzSo1+34)=KalenderJahr,MONTH(MrzSo1+34)=3),MrzSo1+34,\"\"),IF(AND(YEAR(MrzSo1+41)=KalenderJahr,MONTH(MrzSo1+41)=3),MrzSo1+41,\"\"))","v":""},{"$f":"IF(DAY(MrzSo1)=1,IF(AND(YEAR(MrzSo1+35)=KalenderJahr,MONTH(MrzSo1+35)=3),MrzSo1+35,\"\"),IF(AND(YEAR(MrzSo1+42)=KalenderJahr,MONTH(MrzSo1+42)=3),MrzSo1+42,\"\"))","v":""},null,null,{"$f":"IF(DAY(AprSo1)=1,IF(AND(YEAR(AprSo1+29)=KalenderJahr,MONTH(AprSo1+29)=4),AprSo1+29,\"\"),IF(AND(YEAR(AprSo1+36)=KalenderJahr,MONTH(AprSo1+36)=4),AprSo1+36,\"\"))","v":""},{"$f":"IF(DAY(AprSo1)=1,IF(AND(YEAR(AprSo1+30)=KalenderJahr,MONTH(AprSo1+30)=4),AprSo1+30,\"\"),IF(AND(YEAR(AprSo1+37)=KalenderJahr,MONTH(AprSo1+37)=4),AprSo1+37,\"\"))","v":""},{"$f":"IF(DAY(AprSo1)=1,IF(AND(YEAR(AprSo1+31)=KalenderJahr,MONTH(AprSo1+31)=4),AprSo1+31,\"\"),IF(AND(YEAR(AprSo1+38)=KalenderJahr,MONTH(AprSo1+38)=4),AprSo1+38,\"\"))","v":""},{"$f":"IF(DAY(AprSo1)=1,IF(AND(YEAR(AprSo1+32)=KalenderJahr,MONTH(AprSo1+32)=4),AprSo1+32,\"\"),IF(AND(YEAR(AprSo1+39)=KalenderJahr,MONTH(AprSo1+39)=4),AprSo1+39,\"\"))","v":""},{"$f":"IF(DAY(AprSo1)=1,IF(AND(YEAR(AprSo1+33)=KalenderJahr,MONTH(AprSo1+33)=4),AprSo1+33,\"\"),IF(AND(YEAR(AprSo1+40)=KalenderJahr,MONTH(AprSo1+40)=4),AprSo1+40,\"\"))","v":""},{"$f":"IF(DAY(AprSo1)=1,IF(AND(YEAR(AprSo1+34)=KalenderJahr,MONTH(AprSo1+34)=4),AprSo1+34,\"\"),IF(AND(YEAR(AprSo1+41)=KalenderJahr,MONTH(AprSo1+41)=4),AprSo1+41,\"\"))","v":""},{"$f":"IF(DAY(AprSo1)=1,IF(AND(YEAR(AprSo1+35)=KalenderJahr,MONTH(AprSo1+35)=4),AprSo1+35,\"\"),IF(AND(YEAR(AprSo1+42)=KalenderJahr,MONTH(AprSo1+42)=4),AprSo1+42,\"\"))","v":""}]
[]
[null,null,{"$f":"DATE(KalenderJahr,5,1)","v":"2019-05-01"},{"$nulls":8},{"$f":"DATE(KalenderJahr,6,1)","v":"2019-06-01"},{"$nulls":8},{"$f":"DATE(KalenderJahr,7,1)","v":"2019-07-01"},{"$nulls":8},{"$f":"DATE(KalenderJahr,8,1)","v":"2019-08-01"}]
[null,null,"M","D","M","D","F","S","S",null,null,"M","D","M","D","F","S","S",null,null,"M","D","M","D","F","S","S",null,null,"M","D","M","D","F","S","S"]
[null,null,{"$f":"IF(DAY(MaiSo1)=1,\"\",IF(AND(YEAR(MaiSo1+1)=KalenderJahr,MONTH(MaiSo1+1)=5),MaiSo1+1,\"\"))","v":""},{"$f":"IF(DAY(MaiSo1)=1,\"\",IF(AND(YEAR(MaiSo1+2)=KalenderJahr,MONTH(MaiSo1+2)=5),MaiSo1+2,\"\"))","v":""},{"$f":"IF(DAY(MaiSo1)=1,\"\",IF(AND(YEAR(MaiSo1+3)=KalenderJahr,MONTH(MaiSo1+3)=5),MaiSo1+3,\"\"))","v":"2019-05-01"},{"$f":"IF(DAY(MaiSo1)=1,\"\",IF(AND(YEAR(MaiSo1+4)=KalenderJahr,MONTH(MaiSo1+4)=5),MaiSo1+4,\"\"))","v":"2019-05-02"},{"$f":"IF(DAY(MaiSo1)=1,\"\",IF(AND(YEAR(MaiSo1+5)=KalenderJahr,MONTH(MaiSo1+5)=5),MaiSo1+5,\"\"))","v":"2019-05-03"},{"$f":"IF(DAY(MaiSo1)=1,\"\",IF(AND(YEAR(MaiSo1+6)=KalenderJahr,MONTH(MaiSo1+6)=5),MaiSo1+6,\"\"))","v":"2019-05-04"},{"$f":"IF(DAY(MaiSo1)=1,IF(AND(YEAR(MaiSo1)=KalenderJahr,MONTH(MaiSo1)=5),MaiSo1,\"\"),IF(AND(YEAR(MaiSo1+7)=KalenderJahr,MONTH(MaiSo1+7)=5),MaiSo1+7,\"\"))","v":"2019-05-05"},null,null,{"$f":"IF(DAY(JunSo1)=1,\"\",IF(AND(YEAR(JunSo1+1)=KalenderJahr,MONTH(JunSo1+1)=6),JunSo1+1,\"\"))","v":""},{"$f":"IF(DAY(JunSo1)=1,\"\",IF(AND(YEAR(JunSo1+2)=KalenderJahr,MONTH(JunSo1+2)=6),JunSo1+2,\"\"))","v":""},{"$f":"IF(DAY(JunSo1)=1,\"\",IF(AND(YEAR(JunSo1+3)=KalenderJahr,MONTH(JunSo1+3)=6),JunSo1+3,\"\"))","v":""},{"$f":"IF(DAY(JunSo1)=1,\"\",IF(AND(YEAR(JunSo1+4)=KalenderJahr,MONTH(JunSo1+4)=6),JunSo1+4,\"\"))","v":""},{"$f":"IF(DAY(JunSo1)=1,\"\",IF(AND(YEAR(JunSo1+5)=KalenderJahr,MONTH(JunSo1+5)=6),JunSo1+5,\"\"))","v":""},{"$f":"IF(DAY(JunSo1)=1,\"\",IF(AND(YEAR(JunSo1+6)=KalenderJahr,MONTH(JunSo1+6)=6),JunSo1+6,\"\"))","v":"2019-06-01"},{"$f":"IF(DAY(JunSo1)=1,IF(AND(YEAR(JunSo1)=KalenderJahr,MONTH(JunSo1)=6),JunSo1,\"\"),IF(AND(YEAR(JunSo1+7)=KalenderJahr,MONTH(JunSo1+7)=6),JunSo1+7,\"\"))","v":"2019-06-02"},null,null,{"$f":"IF(DAY(JulSo1)=1,\"\",IF(AND(YEAR(JulSo1+1)=KalenderJahr,MONTH(JulSo1+1)=7),JulSo1+1,\"\"))","v":"2019-07-01"},{"$f":"IF(DAY(JulSo1)=1,\"\",IF(AND(YEAR(JulSo1+2)=KalenderJahr,MONTH(JulSo1+2)=7),JulSo1+2,\"\"))","v":"2019-07-02"},{"$f":"IF(DAY(JulSo1)=1,\"\",IF(AND(YEAR(JulSo1+3)=KalenderJahr,MONTH(JulSo1+3)=7),JulSo1+3,\"\"))","v":"2019-07-03"},{"$f":"IF(DAY(JulSo1)=1,\"\",IF(AND(YEAR(JulSo1+4)=KalenderJahr,MONTH(JulSo1+4)=7),JulSo1+4,\"\"))","v":"2019-07-04"},{"$f":"IF(DAY(JulSo1)=1,\"\",IF(AND(YEAR(JulSo1+5)=KalenderJahr,MONTH(JulSo1+5)=7),JulSo1+5,\"\"))","v":"2019-07-05"},{"$f":"IF(DAY(JulSo1)=1,\"\",IF(AND(YEAR(JulSo1+6)=KalenderJahr,MONTH(JulSo1+6)=7),JulSo1+6,\"\"))","v":"2019-07-06"},{"$f":"IF(DAY(JulSo1)=1,IF(AND(YEAR(JulSo1)=KalenderJahr,MONTH(JulSo1)=7),JulSo1,\"\"),IF(AND(YEAR(JulSo1+7)=KalenderJahr,MONTH(JulSo1+7)=7),JulSo1+7,\"\"))","v":"2019-07-07"},null,null,{"$f":"IF(DAY(AugSo1)=1,\"\",IF(AND(YEAR(AugSo1+1)=KalenderJahr,MONTH(AugSo1+1)=8),AugSo1+1,\"\"))","v":""},{"$f":"IF(DAY(AugSo1)=1,\"\",IF(AND(YEAR(AugSo1+2)=KalenderJahr,MONTH(AugSo1+2)=8),AugSo1+2,\"\"))","v":""},{"$f":"IF(DAY(AugSo1)=1,\"\",IF(AND(YEAR(AugSo1+3)=KalenderJahr,MONTH(AugSo1+3)=8),AugSo1+3,\"\"))","v":""},{"$f":"IF(DAY(AugSo1)=1,\"\",IF(AND(YEAR(AugSo1+4)=KalenderJahr,MONTH(AugSo1+4)=8),AugSo1+4,\"\"))","v":"2019-08-01"},{"$f":"IF(DAY(AugSo1)=1,\"\",IF(AND(YEAR(AugSo1+5)=KalenderJahr,MONTH(AugSo1+5)=8),AugSo1+5,\"\"))","v":"2019-08-02"},{"$f":"IF(DAY(AugSo1)=1,\"\",IF(AND(YEAR(AugSo1+6)=KalenderJahr,MONTH(AugSo1+6)=8),AugSo1+6,\"\"))","v":"2019-08-03"},{"$f":"IF(DAY(AugSo1)=1,IF(AND(YEAR(AugSo1)=KalenderJahr,MONTH(AugSo1)=8),AugSo1,\"\"),IF(AND(YEAR(AugSo1+7)=KalenderJahr,MONTH(AugSo1+7)=8),AugSo1+7,\"\"))","v":"2019-08-04"}]
[null,null,{"$f":"IF(DAY(MaiSo1)=1,IF(AND(YEAR(MaiSo1+1)=KalenderJahr,MONTH(MaiSo1+1)=5),MaiSo1+1,\"\"),IF(AND(YEAR(MaiSo1+8)=KalenderJahr,MONTH(MaiSo1+8)=5),MaiSo1+8,\"\"))","v":"2019-05-06"},{"$f":"IF(DAY(MaiSo1)=1,IF(AND(YEAR(MaiSo1+2)=KalenderJahr,MONTH(MaiSo1+2)=5),MaiSo1+2,\"\"),IF(AND(YEAR(MaiSo1+9)=KalenderJahr,MONTH(MaiSo1+9)=5),MaiSo1+9,\"\"))","v":"2019-05-07"},{"$f":"IF(DAY(MaiSo1)=1,IF(AND(YEAR(MaiSo1+3)=KalenderJahr,MONTH(MaiSo1+3)=5),MaiSo1+3,\"\"),IF(AND(YEAR(MaiSo1+10)=KalenderJahr,MONTH(MaiSo1+10)=5),MaiSo1+10,\"\"))","v":"2019-05-08"},{"$f":"IF(DAY(MaiSo1)=1,IF(AND(YEAR(MaiSo1+4)=KalenderJahr,MONTH(MaiSo1+4)=5),MaiSo1+4,\"\"),IF(AND(YEAR(MaiSo1+11)=KalenderJahr,MONTH(MaiSo1+11)=5),MaiSo1+11,\"\"))","v":"2019-05-09"},{"$f":"IF(DAY(MaiSo1)=1,IF(AND(YEAR(MaiSo1+5)=KalenderJahr,MONTH(MaiSo1+5)=5),MaiSo1+5,\"\"),IF(AND(YEAR(MaiSo1+12)=KalenderJahr,MONTH(MaiSo1+12)=5),MaiSo1+12,\"\"))","v":"2019-05-10"},{"$f":"IF(DAY(MaiSo1)=1,IF(AND(YEAR(MaiSo1+6)=KalenderJahr,MONTH(MaiSo1+6)=5),MaiSo1+6,\"\"),IF(AND(YEAR(MaiSo1+13)=KalenderJahr,MONTH(MaiSo1+13)=5),MaiSo1+13,\"\"))","v":"2019-05-11"},{"$f":"IF(DAY(MaiSo1)=1,IF(AND(YEAR(MaiSo1+7)=KalenderJahr,MONTH(MaiSo1+7)=5),MaiSo1+7,\"\"),IF(AND(YEAR(MaiSo1+14)=KalenderJahr,MONTH(MaiSo1+14)=5),MaiSo1+14,\"\"))","v":"2019-05-12"},null,null,{"$f":"IF(DAY(JunSo1)=1,IF(AND(YEAR(JunSo1+1)=KalenderJahr,MONTH(JunSo1+1)=6),JunSo1+1,\"\"),IF(AND(YEAR(JunSo1+8)=KalenderJahr,MONTH(JunSo1+8)=6),JunSo1+8,\"\"))","v":"2019-06-03"},{"$f":"IF(DAY(JunSo1)=1,IF(AND(YEAR(JunSo1+2)=KalenderJahr,MONTH(JunSo1+2)=6),JunSo1+2,\"\"),IF(AND(YEAR(JunSo1+9)=KalenderJahr,MONTH(JunSo1+9)=6),JunSo1+9,\"\"))","v":"2019-06-04"},{"$f":"IF(DAY(JunSo1)=1,IF(AND(YEAR(JunSo1+3)=KalenderJahr,MONTH(JunSo1+3)=6),JunSo1+3,\"\"),IF(AND(YEAR(JunSo1+10)=KalenderJahr,MONTH(JunSo1+10)=6),JunSo1+10,\"\"))","v":"2019-06-05"},{"$f":"IF(DAY(JunSo1)=1,IF(AND(YEAR(JunSo1+4)=KalenderJahr,MONTH(JunSo1+4)=6),JunSo1+4,\"\"),IF(AND(YEAR(JunSo1+11)=KalenderJahr,MONTH(JunSo1+11)=6),JunSo1+11,\"\"))","v":"2019-06-06"},{"$f":"IF(DAY(JunSo1)=1,IF(AND(YEAR(JunSo1+5)=KalenderJahr,MONTH(JunSo1+5)=6),JunSo1+5,\"\"),IF(AND(YEAR(JunSo1+12)=KalenderJahr,MONTH(JunSo1+12)=6),JunSo1+12,\"\"))","v":"2019-06-07"},{"$f":"IF(DAY(JunSo1)=1,IF(AND(YEAR(JunSo1+6)=KalenderJahr,MONTH(JunSo1+6)=6),JunSo1+6,\"\"),IF(AND(YEAR(JunSo1+13)=KalenderJahr,MONTH(JunSo1+13)=6),JunSo1+13,\"\"))","v":"2019-06-08"},{"$f":"IF(DAY(JunSo1)=1,IF(AND(YEAR(JunSo1+7)=KalenderJahr,MONTH(JunSo1+7)=6),JunSo1+7,\"\"),IF(AND(YEAR(JunSo1+14)=KalenderJahr,MONTH(JunSo1+14)=6),JunSo1+14,\"\"))","v":"2019-06-09"},null,null,{"$f":"IF(DAY(JulSo1)=1,IF(AND(YEAR(JulSo1+1)=KalenderJahr,MONTH(JulSo1+1)=7),JulSo1+1,\"\"),IF(AND(YEAR(JulSo1+8)=KalenderJahr,MONTH(JulSo1+8)=7),JulSo1+8,\"\"))","v":"2019-07-08"},{"$f":"IF(DAY(JulSo1)=1,IF(AND(YEAR(JulSo1+2)=KalenderJahr,MONTH(JulSo1+2)=7),JulSo1+2,\"\"),IF(AND(YEAR(JulSo1+9)=KalenderJahr,MONTH(JulSo1+9)=7),JulSo1+9,\"\"))","v":"2019-07-09"},{"$f":"IF(DAY(JulSo1)=1,IF(AND(YEAR(JulSo1+3)=KalenderJahr,MONTH(JulSo1+3)=7),JulSo1+3,\"\"),IF(AND(YEAR(JulSo1+10)=KalenderJahr,MONTH(JulSo1+10)=7),JulSo1+10,\"\"))","v":"2019-07-10"},{"$f":"IF(DAY(JulSo1)=1,IF(AND(YEAR(JulSo1+4)=KalenderJahr,MONTH(JulSo1+4)=7),JulSo1+4,\"\"),IF(AND(YEAR(JulSo1+11)=KalenderJahr,MONTH(JulSo1+11)=7),JulSo1+11,\"\"))","v":"2019-07-11"},{"$f":"IF(DAY(JulSo1)=1,IF(AND(YEAR(JulSo1+5)=KalenderJahr,MONTH(JulSo1+5)=7),JulSo1+5,\"\"),IF(AND(YEAR(JulSo1+12)=KalenderJahr,MONTH(JulSo1+12)=7),JulSo1+12,\"\"))","v":"2019-07-12"},{"$f":"IF(DAY(JulSo1)=1,IF(AND(YEAR(JulSo1+6)=KalenderJahr,MONTH(JulSo1+6)=7),JulSo1+6,\"\"),IF(AND(YEAR(JulSo1+13)=KalenderJahr,MONTH(JulSo1+13)=7),JulSo1+13,\"\"))","v":"2019-07-13"},{"$f":"IF(DAY(JulSo1)=1,IF(AND(YEAR(JulSo1+7)=KalenderJahr,MONTH(JulSo1+7)=7),JulSo1+7,\"\"),IF(AND(YEAR(JulSo1+14)=KalenderJahr,MONTH(JulSo1+14)=7),JulSo1+14,\"\"))","v":"2019-07-14"},null,null,{"$f":"IF(DAY(AugSo1)=1,IF(AND(YEAR(AugSo1+1)=KalenderJahr,MONTH(AugSo1+1)=8),AugSo1+1,\"\"),IF(AND(YEAR(AugSo1+8)=KalenderJahr,MONTH(AugSo1+8)=8),AugSo1+8,\"\"))","v":"2019-08-05"},{"$f":"IF(DAY(AugSo1)=1,IF(AND(YEAR(AugSo1+2)=KalenderJahr,MONTH(AugSo1+2)=8),AugSo1+2,\"\"),IF(AND(YEAR(AugSo1+9)=KalenderJahr,MONTH(AugSo1+9)=8),AugSo1+9,\"\"))","v":"2019-08-06"},{"$f":"IF(DAY(AugSo1)=1,IF(AND(YEAR(AugSo1+3)=KalenderJahr,MONTH(AugSo1+3)=8),AugSo1+3,\"\"),IF(AND(YEAR(AugSo1+10)=KalenderJahr,MONTH(AugSo1+10)=8),AugSo1+10,\"\"))","v":"2019-08-07"},{"$f":"IF(DAY(AugSo1)=1,IF(AND(YEAR(AugSo1+4)=KalenderJahr,MONTH(AugSo1+4)=8),AugSo1+4,\"\"),IF(AND(YEAR(AugSo1+11)=KalenderJahr,MONTH(AugSo1+11)=8),AugSo1+11,\"\"))","v":"2019-08-08"},{"$f":"IF(DAY(AugSo1)=1,IF(AND(YEAR(AugSo1+5)=KalenderJahr,MONTH(AugSo1+5)=8),AugSo1+5,\"\"),IF(AND(YEAR(AugSo1+12)=KalenderJahr,MONTH(AugSo1+12)=8),AugSo1+12,\"\"))","v":"2019-08-09"},{"$f":"IF(DAY(AugSo1)=1,IF(AND(YEAR(AugSo1+6)=KalenderJahr,MONTH(AugSo1+6)=8),AugSo1+6,\"\"),IF(AND(YEAR(AugSo1+13)=KalenderJahr,MONTH(AugSo1+13)=8),AugSo1+13,\"\"))","v":"2019-08-10"},{"$f":"IF(DAY(AugSo1)=1,IF(AND(YEAR(AugSo1+7)=KalenderJahr,MONTH(AugSo1+7)=8),AugSo1+7,\"\"),IF(AND(YEAR(AugSo1+14)=KalenderJahr,MONTH(AugSo1+14)=8),AugSo1+14,\"\"))","v":"2019-08-11"}]
[null,null,{"$f":"IF(DAY(MaiSo1)=1,IF(AND(YEAR(MaiSo1+8)=KalenderJahr,MONTH(MaiSo1+8)=5),MaiSo1+8,\"\"),IF(AND(YEAR(MaiSo1+15)=KalenderJahr,MONTH(MaiSo1+15)=5),MaiSo1+15,\"\"))","v":"2019-05-13"},{"$f":"IF(DAY(MaiSo1)=1,IF(AND(YEAR(MaiSo1+9)=KalenderJahr,MONTH(MaiSo1+9)=5),MaiSo1+9,\"\"),IF(AND(YEAR(MaiSo1+16)=KalenderJahr,MONTH(MaiSo1+16)=5),MaiSo1+16,\"\"))","v":"2019-05-14"},{"$f":"IF(DAY(MaiSo1)=1,IF(AND(YEAR(MaiSo1+10)=KalenderJahr,MONTH(MaiSo1+10)=5),MaiSo1+10,\"\"),IF(AND(YEAR(MaiSo1+17)=KalenderJahr,MONTH(MaiSo1+17)=5),MaiSo1+17,\"\"))","v":"2019-05-15"},{"$f":"IF(DAY(MaiSo1)=1,IF(AND(YEAR(MaiSo1+11)=KalenderJahr,MONTH(MaiSo1+11)=5),MaiSo1+11,\"\"),IF(AND(YEAR(MaiSo1+18)=KalenderJahr,MONTH(MaiSo1+18)=5),MaiSo1+18,\"\"))","v":"2019-05-16"},{"$f":"IF(DAY(MaiSo1)=1,IF(AND(YEAR(MaiSo1+12)=KalenderJahr,MONTH(MaiSo1+12)=5),MaiSo1+12,\"\"),IF(AND(YEAR(MaiSo1+19)=KalenderJahr,MONTH(MaiSo1+19)=5),MaiSo1+19,\"\"))","v":"2019-05-17"},{"$f":"IF(DAY(MaiSo1)=1,IF(AND(YEAR(MaiSo1+13)=KalenderJahr,MONTH(MaiSo1+13)=5),MaiSo1+13,\"\"),IF(AND(YEAR(MaiSo1+20)=KalenderJahr,MONTH(MaiSo1+20)=5),MaiSo1+20,\"\"))","v":"2019-05-18"},{"$f":"IF(DAY(MaiSo1)=1,IF(AND(YEAR(MaiSo1+14)=KalenderJahr,MONTH(MaiSo1+14)=5),MaiSo1+14,\"\"),IF(AND(YEAR(MaiSo1+21)=KalenderJahr,MONTH(MaiSo1+21)=5),MaiSo1+21,\"\"))","v":"2019-05-19"},null,null,{"$f":"IF(DAY(JunSo1)=1,IF(AND(YEAR(JunSo1+8)=KalenderJahr,MONTH(JunSo1+8)=6),JunSo1+8,\"\"),IF(AND(YEAR(JunSo1+15)=KalenderJahr,MONTH(JunSo1+15)=6),JunSo1+15,\"\"))","v":"2019-06-10"},{"$f":"IF(DAY(JunSo1)=1,IF(AND(YEAR(JunSo1+9)=KalenderJahr,MONTH(JunSo1+9)=6),JunSo1+9,\"\"),IF(AND(YEAR(JunSo1+16)=KalenderJahr,MONTH(JunSo1+16)=6),JunSo1+16,\"\"))","v":"2019-06-11"},{"$f":"IF(DAY(JunSo1)=1,IF(AND(YEAR(JunSo1+10)=KalenderJahr,MONTH(JunSo1+10)=6),JunSo1+10,\"\"),IF(AND(YEAR(JunSo1+17)=KalenderJahr,MONTH(JunSo1+17)=6),JunSo1+17,\"\"))","v":"2019-06-12"},{"$f":"IF(DAY(JunSo1)=1,IF(AND(YEAR(JunSo1+11)=KalenderJahr,MONTH(JunSo1+11)=6),JunSo1+11,\"\"),IF(AND(YEAR(JunSo1+18)=KalenderJahr,MONTH(JunSo1+18)=6),JunSo1+18,\"\"))","v":"2019-06-13"},{"$f":"IF(DAY(JunSo1)=1,IF(AND(YEAR(JunSo1+12)=KalenderJahr,MONTH(JunSo1+12)=6),JunSo1+12,\"\"),IF(AND(YEAR(JunSo1+19)=KalenderJahr,MONTH(JunSo1+19)=6),JunSo1+19,\"\"))","v":"2019-06-14"},{"$f":"IF(DAY(JunSo1)=1,IF(AND(YEAR(JunSo1+13)=KalenderJahr,MONTH(JunSo1+13)=6),JunSo1+13,\"\"),IF(AND(YEAR(JunSo1+20)=KalenderJahr,MONTH(JunSo1+20)=6),JunSo1+20,\"\"))","v":"2019-06-15"},{"$f":"IF(DAY(JunSo1)=1,IF(AND(YEAR(JunSo1+14)=KalenderJahr,MONTH(JunSo1+14)=6),JunSo1+14,\"\"),IF(AND(YEAR(JunSo1+21)=KalenderJahr,MONTH(JunSo1+21)=6),JunSo1+21,\"\"))","v":"2019-06-16"},null,null,{"$f":"IF(DAY(JulSo1)=1,IF(AND(YEAR(JulSo1+8)=KalenderJahr,MONTH(JulSo1+8)=7),JulSo1+8,\"\"),IF(AND(YEAR(JulSo1+15)=KalenderJahr,MONTH(JulSo1+15)=7),JulSo1+15,\"\"))","v":"2019-07-15"},{"$f":"IF(DAY(JulSo1)=1,IF(AND(YEAR(JulSo1+9)=KalenderJahr,MONTH(JulSo1+9)=7),JulSo1+9,\"\"),IF(AND(YEAR(JulSo1+16)=KalenderJahr,MONTH(JulSo1+16)=7),JulSo1+16,\"\"))","v":"2019-07-16"},{"$f":"IF(DAY(JulSo1)=1,IF(AND(YEAR(JulSo1+10)=KalenderJahr,MONTH(JulSo1+10)=7),JulSo1+10,\"\"),IF(AND(YEAR(JulSo1+17)=KalenderJahr,MONTH(JulSo1+17)=7),JulSo1+17,\"\"))","v":"2019-07-17"},{"$f":"IF(DAY(JulSo1)=1,IF(AND(YEAR(JulSo1+11)=KalenderJahr,MONTH(JulSo1+11)=7),JulSo1+11,\"\"),IF(AND(YEAR(JulSo1+18)=KalenderJahr,MONTH(JulSo1+18)=7),JulSo1+18,\"\"))","v":"2019-07-18"},{"$f":"IF(DAY(JulSo1)=1,IF(AND(YEAR(JulSo1+12)=KalenderJahr,MONTH(JulSo1+12)=7),JulSo1+12,\"\"),IF(AND(YEAR(JulSo1+19)=KalenderJahr,MONTH(JulSo1+19)=7),JulSo1+19,\"\"))","v":"2019-07-19"},{"$f":"IF(DAY(JulSo1)=1,IF(AND(YEAR(JulSo1+13)=KalenderJahr,MONTH(JulSo1+13)=7),JulSo1+13,\"\"),IF(AND(YEAR(JulSo1+20)=KalenderJahr,MONTH(JulSo1+20)=7),JulSo1+20,\"\"))","v":"2019-07-20"},{"$f":"IF(DAY(JulSo1)=1,IF(AND(YEAR(JulSo1+14)=KalenderJahr,MONTH(JulSo1+14)=7),JulSo1+14,\"\"),IF(AND(YEAR(JulSo1+21)=KalenderJahr,MONTH(JulSo1+21)=7),JulSo1+21,\"\"))","v":"2019-07-21"},null,null,{"$f":"IF(DAY(AugSo1)=1,IF(AND(YEAR(AugSo1+8)=KalenderJahr,MONTH(AugSo1+8)=8),AugSo1+8,\"\"),IF(AND(YEAR(AugSo1+15)=KalenderJahr,MONTH(AugSo1+15)=8),AugSo1+15,\"\"))","v":"2019-08-12"},{"$f":"IF(DAY(AugSo1)=1,IF(AND(YEAR(AugSo1+9)=KalenderJahr,MONTH(AugSo1+9)=8),AugSo1+9,\"\"),IF(AND(YEAR(AugSo1+16)=KalenderJahr,MONTH(AugSo1+16)=8),AugSo1+16,\"\"))","v":"2019-08-13"},{"$f":"IF(DAY(AugSo1)=1,IF(AND(YEAR(AugSo1+10)=KalenderJahr,MONTH(AugSo1+10)=8),AugSo1+10,\"\"),IF(AND(YEAR(AugSo1+17)=KalenderJahr,MONTH(AugSo1+17)=8),AugSo1+17,\"\"))","v":"2019-08-14"},{"$f":"IF(DAY(AugSo1)=1,IF(AND(YEAR(AugSo1+11)=KalenderJahr,MONTH(AugSo1+11)=8),AugSo1+11,\"\"),IF(AND(YEAR(AugSo1+18)=KalenderJahr,MONTH(AugSo1+18)=8),AugSo1+18,\"\"))","v":"2019-08-15"},{"$f":"IF(DAY(AugSo1)=1,IF(AND(YEAR(AugSo1+12)=KalenderJahr,MONTH(AugSo1+12)=8),AugSo1+12,\"\"),IF(AND(YEAR(AugSo1+19)=KalenderJahr,MONTH(AugSo1+19)=8),AugSo1+19,\"\"))","v":"2019-08-16"},{"$f":"IF(DAY(AugSo1)=1,IF(AND(YEAR(AugSo1+13)=KalenderJahr,MONTH(AugSo1+13)=8),AugSo1+13,\"\"),IF(AND(YEAR(AugSo1+20)=KalenderJahr,MONTH(AugSo1+20)=8),AugSo1+20,\"\"))","v":"2019-08-17"},{"$f":"IF(DAY(AugSo1)=1,IF(AND(YEAR(AugSo1+14)=KalenderJahr,MONTH(AugSo1+14)=8),AugSo1+14,\"\"),IF(AND(YEAR(AugSo1+21)=KalenderJahr,MONTH(AugSo1+21)=8),AugSo1+21,\"\"))","v":"2019-08-18"}]
[null,null,{"$f":"IF(DAY(MaiSo1)=1,IF(AND(YEAR(MaiSo1+15)=KalenderJahr,MONTH(MaiSo1+15)=5),MaiSo1+15,\"\"),IF(AND(YEAR(MaiSo1+22)=KalenderJahr,MONTH(MaiSo1+22)=5),MaiSo1+22,\"\"))","v":"2019-05-20"},{"$f":"IF(DAY(MaiSo1)=1,IF(AND(YEAR(MaiSo1+16)=KalenderJahr,MONTH(MaiSo1+16)=5),MaiSo1+16,\"\"),IF(AND(YEAR(MaiSo1+23)=KalenderJahr,MONTH(MaiSo1+23)=5),MaiSo1+23,\"\"))","v":"2019-05-21"},{"$f":"IF(DAY(MaiSo1)=1,IF(AND(YEAR(MaiSo1+17)=KalenderJahr,MONTH(MaiSo1+17)=5),MaiSo1+17,\"\"),IF(AND(YEAR(MaiSo1+24)=KalenderJahr,MONTH(MaiSo1+24)=5),MaiSo1+24,\"\"))","v":"2019-05-22"},{"$f":"IF(DAY(MaiSo1)=1,IF(AND(YEAR(MaiSo1+18)=KalenderJahr,MONTH(MaiSo1+18)=5),MaiSo1+18,\"\"),IF(AND(YEAR(MaiSo1+25)=KalenderJahr,MONTH(MaiSo1+25)=5),MaiSo1+25,\"\"))","v":"2019-05-23"},{"$f":"IF(DAY(MaiSo1)=1,IF(AND(YEAR(MaiSo1+19)=KalenderJahr,MONTH(MaiSo1+19)=5),MaiSo1+19,\"\"),IF(AND(YEAR(MaiSo1+26)=KalenderJahr,MONTH(MaiSo1+26)=5),MaiSo1+26,\"\"))","v":"2019-05-24"},{"$f":"IF(DAY(MaiSo1)=1,IF(AND(YEAR(MaiSo1+20)=KalenderJahr,MONTH(MaiSo1+20)=5),MaiSo1+20,\"\"),IF(AND(YEAR(MaiSo1+27)=KalenderJahr,MONTH(MaiSo1+27)=5),MaiSo1+27,\"\"))","v":"2019-05-25"},{"$f":"IF(DAY(MaiSo1)=1,IF(AND(YEAR(MaiSo1+21)=KalenderJahr,MONTH(MaiSo1+21)=5),MaiSo1+21,\"\"),IF(AND(YEAR(MaiSo1+28)=KalenderJahr,MONTH(MaiSo1+28)=5),MaiSo1+28,\"\"))","v":"2019-05-26"},null,null,{"$f":"IF(DAY(JunSo1)=1,IF(AND(YEAR(JunSo1+15)=KalenderJahr,MONTH(JunSo1+15)=6),JunSo1+15,\"\"),IF(AND(YEAR(JunSo1+22)=KalenderJahr,MONTH(JunSo1+22)=6),JunSo1+22,\"\"))","v":"2019-06-17"},{"$f":"IF(DAY(JunSo1)=1,IF(AND(YEAR(JunSo1+16)=KalenderJahr,MONTH(JunSo1+16)=6),JunSo1+16,\"\"),IF(AND(YEAR(JunSo1+23)=KalenderJahr,MONTH(JunSo1+23)=6),JunSo1+23,\"\"))","v":"2019-06-18"},{"$f":"IF(DAY(JunSo1)=1,IF(AND(YEAR(JunSo1+17)=KalenderJahr,MONTH(JunSo1+17)=6),JunSo1+17,\"\"),IF(AND(YEAR(JunSo1+24)=KalenderJahr,MONTH(JunSo1+24)=6),JunSo1+24,\"\"))","v":"2019-06-19"},{"$f":"IF(DAY(JunSo1)=1,IF(AND(YEAR(JunSo1+18)=KalenderJahr,MONTH(JunSo1+18)=6),JunSo1+18,\"\"),IF(AND(YEAR(JunSo1+25)=KalenderJahr,MONTH(JunSo1+25)=6),JunSo1+25,\"\"))","v":"2019-06-20"},{"$f":"IF(DAY(JunSo1)=1,IF(AND(YEAR(JunSo1+19)=KalenderJahr,MONTH(JunSo1+19)=6),JunSo1+19,\"\"),IF(AND(YEAR(JunSo1+26)=KalenderJahr,MONTH(JunSo1+26)=6),JunSo1+26,\"\"))","v":"2019-06-21"},{"$f":"IF(DAY(JunSo1)=1,IF(AND(YEAR(JunSo1+20)=KalenderJahr,MONTH(JunSo1+20)=6),JunSo1+20,\"\"),IF(AND(YEAR(JunSo1+27)=KalenderJahr,MONTH(JunSo1+27)=6),JunSo1+27,\"\"))","v":"2019-06-22"},{"$f":"IF(DAY(JunSo1)=1,IF(AND(YEAR(JunSo1+21)=KalenderJahr,MONTH(JunSo1+21)=6),JunSo1+21,\"\"),IF(AND(YEAR(JunSo1+28)=KalenderJahr,MONTH(JunSo1+28)=6),JunSo1+28,\"\"))","v":"2019-06-23"},null,null,{"$f":"IF(DAY(JulSo1)=1,IF(AND(YEAR(JulSo1+15)=KalenderJahr,MONTH(JulSo1+15)=7),JulSo1+15,\"\"),IF(AND(YEAR(JulSo1+22)=KalenderJahr,MONTH(JulSo1+22)=7),JulSo1+22,\"\"))","v":"2019-07-22"},{"$f":"IF(DAY(JulSo1)=1,IF(AND(YEAR(JulSo1+16)=KalenderJahr,MONTH(JulSo1+16)=7),JulSo1+16,\"\"),IF(AND(YEAR(JulSo1+23)=KalenderJahr,MONTH(JulSo1+23)=7),JulSo1+23,\"\"))","v":"2019-07-23"},{"$f":"IF(DAY(JulSo1)=1,IF(AND(YEAR(JulSo1+17)=KalenderJahr,MONTH(JulSo1+17)=7),JulSo1+17,\"\"),IF(AND(YEAR(JulSo1+24)=KalenderJahr,MONTH(JulSo1+24)=7),JulSo1+24,\"\"))","v":"2019-07-24"},{"$f":"IF(DAY(JulSo1)=1,IF(AND(YEAR(JulSo1+18)=KalenderJahr,MONTH(JulSo1+18)=7),JulSo1+18,\"\"),IF(AND(YEAR(JulSo1+25)=KalenderJahr,MONTH(JulSo1+25)=7),JulSo1+25,\"\"))","v":"2019-07-25"},{"$f":"IF(DAY(JulSo1)=1,IF(AND(YEAR(JulSo1+19)=KalenderJahr,MONTH(JulSo1+19)=7),JulSo1+19,\"\"),IF(AND(YEAR(JulSo1+26)=KalenderJahr,MONTH(JulSo1+26)=7),JulSo1+26,\"\"))","v":"2019-07-26"},{"$f":"IF(DAY(JulSo1)=1,IF(AND(YEAR(JulSo1+20)=KalenderJahr,MONTH(JulSo1+20)=7),JulSo1+20,\"\"),IF(AND(YEAR(JulSo1+27)=KalenderJahr,MONTH(JulSo1+27)=7),JulSo1+27,\"\"))","v":"2019-07-27"},{"$f":"IF(DAY(JulSo1)=1,IF(AND(YEAR(JulSo1+21)=KalenderJahr,MONTH(JulSo1+21)=7),JulSo1+21,\"\"),IF(AND(YEAR(JulSo1+28)=KalenderJahr,MONTH(JulSo1+28)=7),JulSo1+28,\"\"))","v":"2019-07-28"},null,null,{"$f":"IF(DAY(AugSo1)=1,IF(AND(YEAR(AugSo1+15)=KalenderJahr,MONTH(AugSo1+15)=8),AugSo1+15,\"\"),IF(AND(YEAR(AugSo1+22)=KalenderJahr,MONTH(AugSo1+22)=8),AugSo1+22,\"\"))","v":"2019-08-19"},{"$f":"IF(DAY(AugSo1)=1,IF(AND(YEAR(AugSo1+16)=KalenderJahr,MONTH(AugSo1+16)=8),AugSo1+16,\"\"),IF(AND(YEAR(AugSo1+23)=KalenderJahr,MONTH(AugSo1+23)=8),AugSo1+23,\"\"))","v":"2019-08-20"},{"$f":"IF(DAY(AugSo1)=1,IF(AND(YEAR(AugSo1+17)=KalenderJahr,MONTH(AugSo1+17)=8),AugSo1+17,\"\"),IF(AND(YEAR(AugSo1+24)=KalenderJahr,MONTH(AugSo1+24)=8),AugSo1+24,\"\"))","v":"2019-08-21"},{"$f":"IF(DAY(AugSo1)=1,IF(AND(YEAR(AugSo1+18)=KalenderJahr,MONTH(AugSo1+18)=8),AugSo1+18,\"\"),IF(AND(YEAR(AugSo1+25)=KalenderJahr,MONTH(AugSo1+25)=8),AugSo1+25,\"\"))","v":"2019-08-22"},{"$f":"IF(DAY(AugSo1)=1,IF(AND(YEAR(AugSo1+19)=KalenderJahr,MONTH(AugSo1+19)=8),AugSo1+19,\"\"),IF(AND(YEAR(AugSo1+26)=KalenderJahr,MONTH(AugSo1+26)=8),AugSo1+26,\"\"))","v":"2019-08-23"},{"$f":"IF(DAY(AugSo1)=1,IF(AND(YEAR(AugSo1+20)=KalenderJahr,MONTH(AugSo1+20)=8),AugSo1+20,\"\"),IF(AND(YEAR(AugSo1+27)=KalenderJahr,MONTH(AugSo1+27)=8),AugSo1+27,\"\"))","v":"2019-08-24"},{"$f":"IF(DAY(AugSo1)=1,IF(AND(YEAR(AugSo1+21)=KalenderJahr,MONTH(AugSo1+21)=8),AugSo1+21,\"\"),IF(AND(YEAR(AugSo1+28)=KalenderJahr,MONTH(AugSo1+28)=8),AugSo1+28,\"\"))","v":"2019-08-25"}]
[null,null,{"$f":"IF(DAY(MaiSo1)=1,IF(AND(YEAR(MaiSo1+22)=KalenderJahr,MONTH(MaiSo1+22)=5),MaiSo1+22,\"\"),IF(AND(YEAR(MaiSo1+29)=KalenderJahr,MONTH(MaiSo1+29)=5),MaiSo1+29,\"\"))","v":"2019-05-27"},{"$f":"IF(DAY(MaiSo1)=1,IF(AND(YEAR(MaiSo1+23)=KalenderJahr,MONTH(MaiSo1+23)=5),MaiSo1+23,\"\"),IF(AND(YEAR(MaiSo1+30)=KalenderJahr,MONTH(MaiSo1+30)=5),MaiSo1+30,\"\"))","v":"2019-05-28"},{"$f":"IF(DAY(MaiSo1)=1,IF(AND(YEAR(MaiSo1+24)=KalenderJahr,MONTH(MaiSo1+24)=5),MaiSo1+24,\"\"),IF(AND(YEAR(MaiSo1+31)=KalenderJahr,MONTH(MaiSo1+31)=5),MaiSo1+31,\"\"))","v":"2019-05-29"},{"$f":"IF(DAY(MaiSo1)=1,IF(AND(YEAR(MaiSo1+25)=KalenderJahr,MONTH(MaiSo1+25)=5),MaiSo1+25,\"\"),IF(AND(YEAR(MaiSo1+32)=KalenderJahr,MONTH(MaiSo1+32)=5),MaiSo1+32,\"\"))","v":"2019-05-30"},{"$f":"IF(DAY(MaiSo1)=1,IF(AND(YEAR(MaiSo1+26)=KalenderJahr,MONTH(MaiSo1+26)=5),MaiSo1+26,\"\"),IF(AND(YEAR(MaiSo1+33)=KalenderJahr,MONTH(MaiSo1+33)=5),MaiSo1+33,\"\"))","v":"2019-05-31"},{"$f":"IF(DAY(MaiSo1)=1,IF(AND(YEAR(MaiSo1+27)=KalenderJahr,MONTH(MaiSo1+27)=5),MaiSo1+27,\"\"),IF(AND(YEAR(MaiSo1+34)=KalenderJahr,MONTH(MaiSo1+34)=5),MaiSo1+34,\"\"))","v":""},{"$f":"IF(DAY(MaiSo1)=1,IF(AND(YEAR(MaiSo1+28)=KalenderJahr,MONTH(MaiSo1+28)=5),MaiSo1+28,\"\"),IF(AND(YEAR(MaiSo1+35)=KalenderJahr,MONTH(MaiSo1+35)=5),MaiSo1+35,\"\"))","v":""},null,null,{"$f":"IF(DAY(JunSo1)=1,IF(AND(YEAR(JunSo1+22)=KalenderJahr,MONTH(JunSo1+22)=6),JunSo1+22,\"\"),IF(AND(YEAR(JunSo1+29)=KalenderJahr,MONTH(JunSo1+29)=6),JunSo1+29,\"\"))","v":"2019-06-24"},{"$f":"IF(DAY(JunSo1)=1,IF(AND(YEAR(JunSo1+23)=KalenderJahr,MONTH(JunSo1+23)=6),JunSo1+23,\"\"),IF(AND(YEAR(JunSo1+30)=KalenderJahr,MONTH(JunSo1+30)=6),JunSo1+30,\"\"))","v":"2019-06-25"},{"$f":"IF(DAY(JunSo1)=1,IF(AND(YEAR(JunSo1+24)=KalenderJahr,MONTH(JunSo1+24)=6),JunSo1+24,\"\"),IF(AND(YEAR(JunSo1+31)=KalenderJahr,MONTH(JunSo1+31)=6),JunSo1+31,\"\"))","v":"2019-06-26"},{"$f":"IF(DAY(JunSo1)=1,IF(AND(YEAR(JunSo1+25)=KalenderJahr,MONTH(JunSo1+25)=6),JunSo1+25,\"\"),IF(AND(YEAR(JunSo1+32)=KalenderJahr,MONTH(JunSo1+32)=6),JunSo1+32,\"\"))","v":"2019-06-27"},{"$f":"IF(DAY(JunSo1)=1,IF(AND(YEAR(JunSo1+26)=KalenderJahr,MONTH(JunSo1+26)=6),JunSo1+26,\"\"),IF(AND(YEAR(JunSo1+33)=KalenderJahr,MONTH(JunSo1+33)=6),JunSo1+33,\"\"))","v":"2019-06-28"},{"$f":"IF(DAY(JunSo1)=1,IF(AND(YEAR(JunSo1+27)=KalenderJahr,MONTH(JunSo1+27)=6),JunSo1+27,\"\"),IF(AND(YEAR(JunSo1+34)=KalenderJahr,MONTH(JunSo1+34)=6),JunSo1+34,\"\"))","v":"2019-06-29"},{"$f":"IF(DAY(JunSo1)=1,IF(AND(YEAR(JunSo1+28)=KalenderJahr,MONTH(JunSo1+28)=6),JunSo1+28,\"\"),IF(AND(YEAR(JunSo1+35)=KalenderJahr,MONTH(JunSo1+35)=6),JunSo1+35,\"\"))","v":"2019-06-30"},null,null,{"$f":"IF(DAY(JulSo1)=1,IF(AND(YEAR(JulSo1+22)=KalenderJahr,MONTH(JulSo1+22)=7),JulSo1+22,\"\"),IF(AND(YEAR(JulSo1+29)=KalenderJahr,MONTH(JulSo1+29)=7),JulSo1+29,\"\"))","v":"2019-07-29"},{"$f":"IF(DAY(JulSo1)=1,IF(AND(YEAR(JulSo1+23)=KalenderJahr,MONTH(JulSo1+23)=7),JulSo1+23,\"\"),IF(AND(YEAR(JulSo1+30)=KalenderJahr,MONTH(JulSo1+30)=7),JulSo1+30,\"\"))","v":"2019-07-30"},{"$f":"IF(DAY(JulSo1)=1,IF(AND(YEAR(JulSo1+24)=KalenderJahr,MONTH(JulSo1+24)=7),JulSo1+24,\"\"),IF(AND(YEAR(JulSo1+31)=KalenderJahr,MONTH(JulSo1+31)=7),JulSo1+31,\"\"))","v":"2019-07-31"},{"$f":"IF(DAY(JulSo1)=1,IF(AND(YEAR(JulSo1+25)=KalenderJahr,MONTH(JulSo1+25)=7),JulSo1+25,\"\"),IF(AND(YEAR(JulSo1+32)=KalenderJahr,MONTH(JulSo1+32)=7),JulSo1+32,\"\"))","v":""},{"$f":"IF(DAY(JulSo1)=1,IF(AND(YEAR(JulSo1+26)=KalenderJahr,MONTH(JulSo1+26)=7),JulSo1+26,\"\"),IF(AND(YEAR(JulSo1+33)=KalenderJahr,MONTH(JulSo1+33)=7),JulSo1+33,\"\"))","v":""},{"$f":"IF(DAY(JulSo1)=1,IF(AND(YEAR(JulSo1+27)=KalenderJahr,MONTH(JulSo1+27)=7),JulSo1+27,\"\"),IF(AND(YEAR(JulSo1+34)=KalenderJahr,MONTH(JulSo1+34)=7),JulSo1+34,\"\"))","v":""},{"$f":"IF(DAY(JulSo1)=1,IF(AND(YEAR(JulSo1+28)=KalenderJahr,MONTH(JulSo1+28)=7),JulSo1+28,\"\"),IF(AND(YEAR(JulSo1+35)=KalenderJahr,MONTH(JulSo1+35)=7),JulSo1+35,\"\"))","v":""},null,null,{"$f":"IF(DAY(AugSo1)=1,IF(AND(YEAR(AugSo1+22)=KalenderJahr,MONTH(AugSo1+22)=8),AugSo1+22,\"\"),IF(AND(YEAR(AugSo1+29)=KalenderJahr,MONTH(AugSo1+29)=8),AugSo1+29,\"\"))","v":"2019-08-26"},{"$f":"IF(DAY(AugSo1)=1,IF(AND(YEAR(AugSo1+23)=KalenderJahr,MONTH(AugSo1+23)=8),AugSo1+23,\"\"),IF(AND(YEAR(AugSo1+30)=KalenderJahr,MONTH(AugSo1+30)=8),AugSo1+30,\"\"))","v":"2019-08-27"},{"$f":"IF(DAY(AugSo1)=1,IF(AND(YEAR(AugSo1+24)=KalenderJahr,MONTH(AugSo1+24)=8),AugSo1+24,\"\"),IF(AND(YEAR(AugSo1+31)=KalenderJahr,MONTH(AugSo1+31)=8),AugSo1+31,\"\"))","v":"2019-08-28"},{"$f":"IF(DAY(AugSo1)=1,IF(AND(YEAR(AugSo1+25)=KalenderJahr,MONTH(AugSo1+25)=8),AugSo1+25,\"\"),IF(AND(YEAR(AugSo1+32)=KalenderJahr,MONTH(AugSo1+32)=8),AugSo1+32,\"\"))","v":"2019-08-29"},{"$f":"IF(DAY(AugSo1)=1,IF(AND(YEAR(AugSo1+26)=KalenderJahr,MONTH(AugSo1+26)=8),AugSo1+26,\"\"),IF(AND(YEAR(AugSo1+33)=KalenderJahr,MONTH(AugSo1+33)=8),AugSo1+33,\"\"))","v":"2019-08-30"},{"$f":"IF(DAY(AugSo1)=1,IF(AND(YEAR(AugSo1+27)=KalenderJahr,MONTH(AugSo1+27)=8),AugSo1+27,\"\"),IF(AND(YEAR(AugSo1+34)=KalenderJahr,MONTH(AugSo1+34)=8),AugSo1+34,\"\"))","v":"2019-08-31"},{"$f":"IF(DAY(AugSo1)=1,IF(AND(YEAR(AugSo1+28)=KalenderJahr,MONTH(AugSo1+28)=8),AugSo1+28,\"\"),IF(AND(YEAR(AugSo1+35)=KalenderJahr,MONTH(AugSo1+35)=8),AugSo1+35,\"\"))","v":""}]
[null,null,{"$f":"IF(DAY(MaiSo1)=1,IF(AND(YEAR(MaiSo1+29)=KalenderJahr,MONTH(MaiSo1+29)=5),MaiSo1+29,\"\"),IF(AND(YEAR(MaiSo1+36)=KalenderJahr,MONTH(MaiSo1+36)=5),MaiSo1+36,\"\"))","v":""},{"$f":"IF(DAY(MaiSo1)=1,IF(AND(YEAR(MaiSo1+30)=KalenderJahr,MONTH(MaiSo1+30)=5),MaiSo1+30,\"\"),IF(AND(YEAR(MaiSo1+37)=KalenderJahr,MONTH(MaiSo1+37)=5),MaiSo1+37,\"\"))","v":""},{"$f":"IF(DAY(MaiSo1)=1,IF(AND(YEAR(MaiSo1+31)=KalenderJahr,MONTH(MaiSo1+31)=5),MaiSo1+31,\"\"),IF(AND(YEAR(MaiSo1+38)=KalenderJahr,MONTH(MaiSo1+38)=5),MaiSo1+38,\"\"))","v":""},{"$f":"IF(DAY(MaiSo1)=1,IF(AND(YEAR(MaiSo1+32)=KalenderJahr,MONTH(MaiSo1+32)=5),MaiSo1+32,\"\"),IF(AND(YEAR(MaiSo1+39)=KalenderJahr,MONTH(MaiSo1+39)=5),MaiSo1+39,\"\"))","v":""},{"$f":"IF(DAY(MaiSo1)=1,IF(AND(YEAR(MaiSo1+33)=KalenderJahr,MONTH(MaiSo1+33)=5),MaiSo1+33,\"\"),IF(AND(YEAR(MaiSo1+40)=KalenderJahr,MONTH(MaiSo1+40)=5),MaiSo1+40,\"\"))","v":""},{"$f":"IF(DAY(MaiSo1)=1,IF(AND(YEAR(MaiSo1+34)=KalenderJahr,MONTH(MaiSo1+34)=5),MaiSo1+34,\"\"),IF(AND(YEAR(MaiSo1+41)=KalenderJahr,MONTH(MaiSo1+41)=5),MaiSo1+41,\"\"))","v":""},{"$f":"IF(DAY(MaiSo1)=1,IF(AND(YEAR(MaiSo1+35)=KalenderJahr,MONTH(MaiSo1+35)=5),MaiSo1+35,\"\"),IF(AND(YEAR(MaiSo1+42)=KalenderJahr,MONTH(MaiSo1+42)=5),MaiSo1+42,\"\"))","v":""},null,null,{"$f":"IF(DAY(JunSo1)=1,IF(AND(YEAR(JunSo1+29)=KalenderJahr,MONTH(JunSo1+29)=6),JunSo1+29,\"\"),IF(AND(YEAR(JunSo1+36)=KalenderJahr,MONTH(JunSo1+36)=6),JunSo1+36,\"\"))","v":""},{"$f":"IF(DAY(JunSo1)=1,IF(AND(YEAR(JunSo1+30)=KalenderJahr,MONTH(JunSo1+30)=6),JunSo1+30,\"\"),IF(AND(YEAR(JunSo1+37)=KalenderJahr,MONTH(JunSo1+37)=6),JunSo1+37,\"\"))","v":""},{"$f":"IF(DAY(JunSo1)=1,IF(AND(YEAR(JunSo1+31)=KalenderJahr,MONTH(JunSo1+31)=6),JunSo1+31,\"\"),IF(AND(YEAR(JunSo1+38)=KalenderJahr,MONTH(JunSo1+38)=6),JunSo1+38,\"\"))","v":""},{"$f":"IF(DAY(JunSo1)=1,IF(AND(YEAR(JunSo1+32)=KalenderJahr,MONTH(JunSo1+32)=6),JunSo1+32,\"\"),IF(AND(YEAR(JunSo1+39)=KalenderJahr,MONTH(JunSo1+39)=6),JunSo1+39,\"\"))","v":""},{"$f":"IF(DAY(JunSo1)=1,IF(AND(YEAR(JunSo1+33)=KalenderJahr,MONTH(JunSo1+33)=6),JunSo1+33,\"\"),IF(AND(YEAR(JunSo1+40)=KalenderJahr,MONTH(JunSo1+40)=6),JunSo1+40,\"\"))","v":""},{"$f":"IF(DAY(JunSo1)=1,IF(AND(YEAR(JunSo1+34)=KalenderJahr,MONTH(JunSo1+34)=6),JunSo1+34,\"\"),IF(AND(YEAR(JunSo1+41)=KalenderJahr,MONTH(JunSo1+41)=6),JunSo1+41,\"\"))","v":""},{"$f":"IF(DAY(JunSo1)=1,IF(AND(YEAR(JunSo1+35)=KalenderJahr,MONTH(JunSo1+35)=6),JunSo1+35,\"\"),IF(AND(YEAR(JunSo1+42)=KalenderJahr,MONTH(JunSo1+42)=6),JunSo1+42,\"\"))","v":""},null,null,{"$f":"IF(DAY(JulSo1)=1,IF(AND(YEAR(JulSo1+29)=KalenderJahr,MONTH(JulSo1+29)=7),JulSo1+29,\"\"),IF(AND(YEAR(JulSo1+36)=KalenderJahr,MONTH(JulSo1+36)=7),JulSo1+36,\"\"))","v":""},{"$f":"IF(DAY(JulSo1)=1,IF(AND(YEAR(JulSo1+30)=KalenderJahr,MONTH(JulSo1+30)=7),JulSo1+30,\"\"),IF(AND(YEAR(JulSo1+37)=KalenderJahr,MONTH(JulSo1+37)=7),JulSo1+37,\"\"))","v":""},{"$f":"IF(DAY(JulSo1)=1,IF(AND(YEAR(JulSo1+31)=KalenderJahr,MONTH(JulSo1+31)=7),JulSo1+31,\"\"),IF(AND(YEAR(JulSo1+38)=KalenderJahr,MONTH(JulSo1+38)=7),JulSo1+38,\"\"))","v":""},{"$f":"IF(DAY(JulSo1)=1,IF(AND(YEAR(JulSo1+32)=KalenderJahr,MONTH(JulSo1+32)=7),JulSo1+32,\"\"),IF(AND(YEAR(JulSo1+39)=KalenderJahr,MONTH(JulSo1+39)=7),JulSo1+39,\"\"))","v":""},{"$f":"IF(DAY(JulSo1)=1,IF(AND(YEAR(JulSo1+33)=KalenderJahr,MONTH(JulSo1+33)=7),JulSo1+33,\"\"),IF(AND(YEAR(JulSo1+40)=KalenderJahr,MONTH(JulSo1+40)=7),JulSo1+40,\"\"))","v":""},{"$f":"IF(DAY(JulSo1)=1,IF(AND(YEAR(JulSo1+34)=KalenderJahr,MONTH(JulSo1+34)=7),JulSo1+34,\"\"),IF(AND(YEAR(JulSo1+41)=KalenderJahr,MONTH(JulSo1+41)=7),JulSo1+41,\"\"))","v":""},{"$f":"IF(DAY(JulSo1)=1,IF(AND(YEAR(JulSo1+35)=KalenderJahr,MONTH(JulSo1+35)=7),JulSo1+35,\"\"),IF(AND(YEAR(JulSo1+42)=KalenderJahr,MONTH(JulSo1+42)=7),JulSo1+42,\"\"))","v":""},null,null,{"$f":"IF(DAY(AugSo1)=1,IF(AND(YEAR(AugSo1+29)=KalenderJahr,MONTH(AugSo1+29)=8),AugSo1+29,\"\"),IF(AND(YEAR(AugSo1+36)=KalenderJahr,MONTH(AugSo1+36)=8),AugSo1+36,\"\"))","v":""},{"$f":"IF(DAY(AugSo1)=1,IF(AND(YEAR(AugSo1+30)=KalenderJahr,MONTH(AugSo1+30)=8),AugSo1+30,\"\"),IF(AND(YEAR(AugSo1+37)=KalenderJahr,MONTH(AugSo1+37)=8),AugSo1+37,\"\"))","v":""},{"$f":"IF(DAY(AugSo1)=1,IF(AND(YEAR(AugSo1+31)=KalenderJahr,MONTH(AugSo1+31)=8),AugSo1+31,\"\"),IF(AND(YEAR(AugSo1+38)=KalenderJahr,MONTH(AugSo1+38)=8),AugSo1+38,\"\"))","v":""},{"$f":"IF(DAY(AugSo1)=1,IF(AND(YEAR(AugSo1+32)=KalenderJahr,MONTH(AugSo1+32)=8),AugSo1+32,\"\"),IF(AND(YEAR(AugSo1+39)=KalenderJahr,MONTH(AugSo1+39)=8),AugSo1+39,\"\"))","v":""},{"$f":"IF(DAY(AugSo1)=1,IF(AND(YEAR(AugSo1+33)=KalenderJahr,MONTH(AugSo1+33)=8),AugSo1+33,\"\"),IF(AND(YEAR(AugSo1+40)=KalenderJahr,MONTH(AugSo1+40)=8),AugSo1+40,\"\"))","v":""},{"$f":"IF(DAY(AugSo1)=1,IF(AND(YEAR(AugSo1+34)=KalenderJahr,MONTH(AugSo1+34)=8),AugSo1+34,\"\"),IF(AND(YEAR(AugSo1+41)=KalenderJahr,MONTH(AugSo1+41)=8),AugSo1+41,\"\"))","v":""},{"$f":"IF(DAY(AugSo1)=1,IF(AND(YEAR(AugSo1+35)=KalenderJahr,MONTH(AugSo1+35)=8),AugSo1+35,\"\"),IF(AND(YEAR(AugSo1+42)=KalenderJahr,MONTH(AugSo1+42)=8),AugSo1+42,\"\"))","v":""}]
[]
[null,null,{"$f":"DATE(KalenderJahr,9,1)","v":"2019-09-01"},{"$nulls":8},{"$f":"DATE(KalenderJahr,10,1)","v":"2019-10-01"},{"$nulls":8},{"$f":"DATE(KalenderJahr,11,1)","v":"2019-11-01"},{"$nulls":8},{"$f":"DATE(KalenderJahr,12,1)","v":"2019-12-01"}]
[null,null,"M","D","M","D","F","S","S",null,null,"M","D","M","D","F","S","S",null,null,"M","D","M","D","F","S","S",null,null,"M","D","M","D","F","S","S"]
[null,null,{"$f":"IF(DAY(SepSo1)=1,\"\",IF(AND(YEAR(SepSo1+1)=KalenderJahr,MONTH(SepSo1+1)=9),SepSo1+1,\"\"))","v":""},{"$f":"IF(DAY(SepSo1)=1,\"\",IF(AND(YEAR(SepSo1+2)=KalenderJahr,MONTH(SepSo1+2)=9),SepSo1+2,\"\"))","v":""},{"$f":"IF(DAY(SepSo1)=1,\"\",IF(AND(YEAR(SepSo1+3)=KalenderJahr,MONTH(SepSo1+3)=9),SepSo1+3,\"\"))","v":""},{"$f":"IF(DAY(SepSo1)=1,\"\",IF(AND(YEAR(SepSo1+4)=KalenderJahr,MONTH(SepSo1+4)=9),SepSo1+4,\"\"))","v":""},{"$f":"IF(DAY(SepSo1)=1,\"\",IF(AND(YEAR(SepSo1+5)=KalenderJahr,MONTH(SepSo1+5)=9),SepSo1+5,\"\"))","v":""},{"$f":"IF(DAY(SepSo1)=1,\"\",IF(AND(YEAR(SepSo1+6)=KalenderJahr,MONTH(SepSo1+6)=9),SepSo1+6,\"\"))","v":""},{"$f":"IF(DAY(SepSo1)=1,IF(AND(YEAR(SepSo1)=KalenderJahr,MONTH(SepSo1)=9),SepSo1,\"\"),IF(AND(YEAR(SepSo1+7)=KalenderJahr,MONTH(SepSo1+7)=9),SepSo1+7,\"\"))","v":"2019-09-01"},null,null,{"$f":"IF(DAY(OktSo1)=1,\"\",IF(AND(YEAR(OktSo1+1)=KalenderJahr,MONTH(OktSo1+1)=10),OktSo1+1,\"\"))","v":""},{"$f":"IF(DAY(OktSo1)=1,\"\",IF(AND(YEAR(OktSo1+2)=KalenderJahr,MONTH(OktSo1+2)=10),OktSo1+2,\"\"))","v":"2019-10-01"},{"$f":"IF(DAY(OktSo1)=1,\"\",IF(AND(YEAR(OktSo1+3)=KalenderJahr,MONTH(OktSo1+3)=10),OktSo1+3,\"\"))","v":"2019-10-02"},{"$f":"IF(DAY(OktSo1)=1,\"\",IF(AND(YEAR(OktSo1+4)=KalenderJahr,MONTH(OktSo1+4)=10),OktSo1+4,\"\"))","v":"2019-10-03"},{"$f":"IF(DAY(OktSo1)=1,\"\",IF(AND(YEAR(OktSo1+5)=KalenderJahr,MONTH(OktSo1+5)=10),OktSo1+5,\"\"))","v":"2019-10-04"},{"$f":"IF(DAY(OktSo1)=1,\"\",IF(AND(YEAR(OktSo1+6)=KalenderJahr,MONTH(OktSo1+6)=10),OktSo1+6,\"\"))","v":"2019-10-05"},{"$f":"IF(DAY(OktSo1)=1,IF(AND(YEAR(OktSo1)=KalenderJahr,MONTH(OktSo1)=10),OktSo1,\"\"),IF(AND(YEAR(OktSo1+7)=KalenderJahr,MONTH(OktSo1+7)=10),OktSo1+7,\"\"))","v":"2019-10-06"},null,null,{"$f":"IF(DAY(NovSo1)=1,\"\",IF(AND(YEAR(NovSo1+1)=KalenderJahr,MONTH(NovSo1+1)=11),NovSo1+1,\"\"))","v":""},{"$f":"IF(DAY(NovSo1)=1,\"\",IF(AND(YEAR(NovSo1+2)=KalenderJahr,MONTH(NovSo1+2)=11),NovSo1+2,\"\"))","v":""},{"$f":"IF(DAY(NovSo1)=1,\"\",IF(AND(YEAR(NovSo1+3)=KalenderJahr,MONTH(NovSo1+3)=11),NovSo1+3,\"\"))","v":""},{"$f":"IF(DAY(NovSo1)=1,\"\",IF(AND(YEAR(NovSo1+4)=KalenderJahr,MONTH(NovSo1+4)=11),NovSo1+4,\"\"))","v":""},{"$f":"IF(DAY(NovSo1)=1,\"\",IF(AND(YEAR(NovSo1+5)=KalenderJahr,MONTH(NovSo1+5)=11),NovSo1+5,\"\"))","v":"2019-11-01"},{"$f":"IF(DAY(NovSo1)=1,\"\",IF(AND(YEAR(NovSo1+6)=KalenderJahr,MONTH(NovSo1+6)=11),NovSo1+6,\"\"))","v":"2019-11-02"},{"$f":"IF(DAY(NovSo1)=1,IF(AND(YEAR(NovSo1)=KalenderJahr,MONTH(NovSo1)=11),NovSo1,\"\"),IF(AND(YEAR(NovSo1+7)=KalenderJahr,MONTH(NovSo1+7)=11),NovSo1+7,\"\"))","v":"2019-11-03"},null,null,{"$f":"IF(DAY(DezSo1)=1,\"\",IF(AND(YEAR(DezSo1+1)=KalenderJahr,MONTH(DezSo1+1)=12),DezSo1+1,\"\"))","v":""},{"$f":"IF(DAY(DezSo1)=1,\"\",IF(AND(YEAR(DezSo1+2)=KalenderJahr,MONTH(DezSo1+2)=12),DezSo1+2,\"\"))","v":""},{"$f":"IF(DAY(DezSo1)=1,\"\",IF(AND(YEAR(DezSo1+3)=KalenderJahr,MONTH(DezSo1+3)=12),DezSo1+3,\"\"))","v":""},{"$f":"IF(DAY(DezSo1)=1,\"\",IF(AND(YEAR(DezSo1+4)=KalenderJahr,MONTH(DezSo1+4)=12),DezSo1+4,\"\"))","v":""},{"$f":"IF(DAY(DezSo1)=1,\"\",IF(AND(YEAR(DezSo1+5)=KalenderJahr,MONTH(DezSo1+5)=12),DezSo1+5,\"\"))","v":""},{"$f":"IF(DAY(DezSo1)=1,\"\",IF(AND(YEAR(DezSo1+6)=KalenderJahr,MONTH(DezSo1+6)=12),DezSo1+6,\"\"))","v":""},{"$f":"IF(DAY(DezSo1)=1,IF(AND(YEAR(DezSo1)=KalenderJahr,MONTH(DezSo1)=12),DezSo1,\"\"),IF(AND(YEAR(DezSo1+7)=KalenderJahr,MONTH(DezSo1+7)=12),DezSo1+7,\"\"))","v":"2019-12-01"}]
[null,null,{"$f":"IF(DAY(SepSo1)=1,IF(AND(YEAR(SepSo1+1)=KalenderJahr,MONTH(SepSo1+1)=9),SepSo1+1,\"\"),IF(AND(YEAR(SepSo1+8)=KalenderJahr,MONTH(SepSo1+8)=9),SepSo1+8,\"\"))","v":"2019-09-02"},{"$f":"IF(DAY(SepSo1)=1,IF(AND(YEAR(SepSo1+2)=KalenderJahr,MONTH(SepSo1+2)=9),SepSo1+2,\"\"),IF(AND(YEAR(SepSo1+9)=KalenderJahr,MONTH(SepSo1+9)=9),SepSo1+9,\"\"))","v":"2019-09-03"},{"$f":"IF(DAY(SepSo1)=1,IF(AND(YEAR(SepSo1+3)=KalenderJahr,MONTH(SepSo1+3)=9),SepSo1+3,\"\"),IF(AND(YEAR(SepSo1+10)=KalenderJahr,MONTH(SepSo1+10)=9),SepSo1+10,\"\"))","v":"2019-09-04"},{"$f":"IF(DAY(SepSo1)=1,IF(AND(YEAR(SepSo1+4)=KalenderJahr,MONTH(SepSo1+4)=9),SepSo1+4,\"\"),IF(AND(YEAR(SepSo1+11)=KalenderJahr,MONTH(SepSo1+11)=9),SepSo1+11,\"\"))","v":"2019-09-05"},{"$f":"IF(DAY(SepSo1)=1,IF(AND(YEAR(SepSo1+5)=KalenderJahr,MONTH(SepSo1+5)=9),SepSo1+5,\"\"),IF(AND(YEAR(SepSo1+12)=KalenderJahr,MONTH(SepSo1+12)=9),SepSo1+12,\"\"))","v":"2019-09-06"},{"$f":"IF(DAY(SepSo1)=1,IF(AND(YEAR(SepSo1+6)=KalenderJahr,MONTH(SepSo1+6)=9),SepSo1+6,\"\"),IF(AND(YEAR(SepSo1+13)=KalenderJahr,MONTH(SepSo1+13)=9),SepSo1+13,\"\"))","v":"2019-09-07"},{"$f":"IF(DAY(SepSo1)=1,IF(AND(YEAR(SepSo1+7)=KalenderJahr,MONTH(SepSo1+7)=9),SepSo1+7,\"\"),IF(AND(YEAR(SepSo1+14)=KalenderJahr,MONTH(SepSo1+14)=9),SepSo1+14,\"\"))","v":"2019-09-08"},null,null,{"$f":"IF(DAY(OktSo1)=1,IF(AND(YEAR(OktSo1+1)=KalenderJahr,MONTH(OktSo1+1)=10),OktSo1+1,\"\"),IF(AND(YEAR(OktSo1+8)=KalenderJahr,MONTH(OktSo1+8)=10),OktSo1+8,\"\"))","v":"2019-10-07"},{"$f":"IF(DAY(OktSo1)=1,IF(AND(YEAR(OktSo1+2)=KalenderJahr,MONTH(OktSo1+2)=10),OktSo1+2,\"\"),IF(AND(YEAR(OktSo1+9)=KalenderJahr,MONTH(OktSo1+9)=10),OktSo1+9,\"\"))","v":"2019-10-08"},{"$f":"IF(DAY(OktSo1)=1,IF(AND(YEAR(OktSo1+3)=KalenderJahr,MONTH(OktSo1+3)=10),OktSo1+3,\"\"),IF(AND(YEAR(OktSo1+10)=KalenderJahr,MONTH(OktSo1+10)=10),OktSo1+10,\"\"))","v":"2019-10-09"},{"$f":"IF(DAY(OktSo1)=1,IF(AND(YEAR(OktSo1+4)=KalenderJahr,MONTH(OktSo1+4)=10),OktSo1+4,\"\"),IF(AND(YEAR(OktSo1+11)=KalenderJahr,MONTH(OktSo1+11)=10),OktSo1+11,\"\"))","v":"2019-10-10"},{"$f":"IF(DAY(OktSo1)=1,IF(AND(YEAR(OktSo1+5)=KalenderJahr,MONTH(OktSo1+5)=10),OktSo1+5,\"\"),IF(AND(YEAR(OktSo1+12)=KalenderJahr,MONTH(OktSo1+12)=10),OktSo1+12,\"\"))","v":"2019-10-11"},{"$f":"IF(DAY(OktSo1)=1,IF(AND(YEAR(OktSo1+6)=KalenderJahr,MONTH(OktSo1+6)=10),OktSo1+6,\"\"),IF(AND(YEAR(OktSo1+13)=KalenderJahr,MONTH(OktSo1+13)=10),OktSo1+13,\"\"))","v":"2019-10-12"},{"$f":"IF(DAY(OktSo1)=1,IF(AND(YEAR(OktSo1+7)=KalenderJahr,MONTH(OktSo1+7)=10),OktSo1+7,\"\"),IF(AND(YEAR(OktSo1+14)=KalenderJahr,MONTH(OktSo1+14)=10),OktSo1+14,\"\"))","v":"2019-10-13"},null,null,{"$f":"IF(DAY(NovSo1)=1,IF(AND(YEAR(NovSo1+1)=KalenderJahr,MONTH(NovSo1+1)=11),NovSo1+1,\"\"),IF(AND(YEAR(NovSo1+8)=KalenderJahr,MONTH(NovSo1+8)=11),NovSo1+8,\"\"))","v":"2019-11-04"},{"$f":"IF(DAY(NovSo1)=1,IF(AND(YEAR(NovSo1+2)=KalenderJahr,MONTH(NovSo1+2)=11),NovSo1+2,\"\"),IF(AND(YEAR(NovSo1+9)=KalenderJahr,MONTH(NovSo1+9)=11),NovSo1+9,\"\"))","v":"2019-11-05"},{"$f":"IF(DAY(NovSo1)=1,IF(AND(YEAR(NovSo1+3)=KalenderJahr,MONTH(NovSo1+3)=11),NovSo1+3,\"\"),IF(AND(YEAR(NovSo1+10)=KalenderJahr,MONTH(NovSo1+10)=11),NovSo1+10,\"\"))","v":"2019-11-06"},{"$f":"IF(DAY(NovSo1)=1,IF(AND(YEAR(NovSo1+4)=KalenderJahr,MONTH(NovSo1+4)=11),NovSo1+4,\"\"),IF(AND(YEAR(NovSo1+11)=KalenderJahr,MONTH(NovSo1+11)=11),NovSo1+11,\"\"))","v":"2019-11-07"},{"$f":"IF(DAY(NovSo1)=1,IF(AND(YEAR(NovSo1+5)=KalenderJahr,MONTH(NovSo1+5)=11),NovSo1+5,\"\"),IF(AND(YEAR(NovSo1+12)=KalenderJahr,MONTH(NovSo1+12)=11),NovSo1+12,\"\"))","v":"2019-11-08"},{"$f":"IF(DAY(NovSo1)=1,IF(AND(YEAR(NovSo1+6)=KalenderJahr,MONTH(NovSo1+6)=11),NovSo1+6,\"\"),IF(AND(YEAR(NovSo1+13)=KalenderJahr,MONTH(NovSo1+13)=11),NovSo1+13,\"\"))","v":"2019-11-09"},{"$f":"IF(DAY(NovSo1)=1,IF(AND(YEAR(NovSo1+7)=KalenderJahr,MONTH(NovSo1+7)=11),NovSo1+7,\"\"),IF(AND(YEAR(NovSo1+14)=KalenderJahr,MONTH(NovSo1+14)=11),NovSo1+14,\"\"))","v":"2019-11-10"},null,null,{"$f":"IF(DAY(DezSo1)=1,IF(AND(YEAR(DezSo1+1)=KalenderJahr,MONTH(DezSo1+1)=12),DezSo1+1,\"\"),IF(AND(YEAR(DezSo1+8)=KalenderJahr,MONTH(DezSo1+8)=12),DezSo1+8,\"\"))","v":"2019-12-02"},{"$f":"IF(DAY(DezSo1)=1,IF(AND(YEAR(DezSo1+2)=KalenderJahr,MONTH(DezSo1+2)=12),DezSo1+2,\"\"),IF(AND(YEAR(DezSo1+9)=KalenderJahr,MONTH(DezSo1+9)=12),DezSo1+9,\"\"))","v":"2019-12-03"},{"$f":"IF(DAY(DezSo1)=1,IF(AND(YEAR(DezSo1+3)=KalenderJahr,MONTH(DezSo1+3)=12),DezSo1+3,\"\"),IF(AND(YEAR(DezSo1+10)=KalenderJahr,MONTH(DezSo1+10)=12),DezSo1+10,\"\"))","v":"2019-12-04"},{"$f":"IF(DAY(DezSo1)=1,IF(AND(YEAR(DezSo1+4)=KalenderJahr,MONTH(DezSo1+4)=12),DezSo1+4,\"\"),IF(AND(YEAR(DezSo1+11)=KalenderJahr,MONTH(DezSo1+11)=12),DezSo1+11,\"\"))","v":"2019-12-05"},{"$f":"IF(DAY(DezSo1)=1,IF(AND(YEAR(DezSo1+5)=KalenderJahr,MONTH(DezSo1+5)=12),DezSo1+5,\"\"),IF(AND(YEAR(DezSo1+12)=KalenderJahr,MONTH(DezSo1+12)=12),DezSo1+12,\"\"))","v":"2019-12-06"},{"$f":"IF(DAY(DezSo1)=1,IF(AND(YEAR(DezSo1+6)=KalenderJahr,MONTH(DezSo1+6)=12),DezSo1+6,\"\"),IF(AND(YEAR(DezSo1+13)=KalenderJahr,MONTH(DezSo1+13)=12),DezSo1+13,\"\"))","v":"2019-12-07"},{"$f":"IF(DAY(DezSo1)=1,IF(AND(YEAR(DezSo1+7)=KalenderJahr,MONTH(DezSo1+7)=12),DezSo1+7,\"\"),IF(AND(YEAR(DezSo1+14)=KalenderJahr,MONTH(DezSo1+14)=12),DezSo1+14,\"\"))","v":"2019-12-08"}]
[null,null,{"$f":"IF(DAY(SepSo1)=1,IF(AND(YEAR(SepSo1+8)=KalenderJahr,MONTH(SepSo1+8)=9),SepSo1+8,\"\"),IF(AND(YEAR(SepSo1+15)=KalenderJahr,MONTH(SepSo1+15)=9),SepSo1+15,\"\"))","v":"2019-09-09"},{"$f":"IF(DAY(SepSo1)=1,IF(AND(YEAR(SepSo1+9)=KalenderJahr,MONTH(SepSo1+9)=9),SepSo1+9,\"\"),IF(AND(YEAR(SepSo1+16)=KalenderJahr,MONTH(SepSo1+16)=9),SepSo1+16,\"\"))","v":"2019-09-10"},{"$f":"IF(DAY(SepSo1)=1,IF(AND(YEAR(SepSo1+10)=KalenderJahr,MONTH(SepSo1+10)=9),SepSo1+10,\"\"),IF(AND(YEAR(SepSo1+17)=KalenderJahr,MONTH(SepSo1+17)=9),SepSo1+17,\"\"))","v":"2019-09-11"},{"$f":"IF(DAY(SepSo1)=1,IF(AND(YEAR(SepSo1+11)=KalenderJahr,MONTH(SepSo1+11)=9),SepSo1+11,\"\"),IF(AND(YEAR(SepSo1+18)=KalenderJahr,MONTH(SepSo1+18)=9),SepSo1+18,\"\"))","v":"2019-09-12"},{"$f":"IF(DAY(SepSo1)=1,IF(AND(YEAR(SepSo1+12)=KalenderJahr,MONTH(SepSo1+12)=9),SepSo1+12,\"\"),IF(AND(YEAR(SepSo1+19)=KalenderJahr,MONTH(SepSo1+19)=9),SepSo1+19,\"\"))","v":"2019-09-13"},{"$f":"IF(DAY(SepSo1)=1,IF(AND(YEAR(SepSo1+13)=KalenderJahr,MONTH(SepSo1+13)=9),SepSo1+13,\"\"),IF(AND(YEAR(SepSo1+20)=KalenderJahr,MONTH(SepSo1+20)=9),SepSo1+20,\"\"))","v":"2019-09-14"},{"$f":"IF(DAY(SepSo1)=1,IF(AND(YEAR(SepSo1+14)=KalenderJahr,MONTH(SepSo1+14)=9),SepSo1+14,\"\"),IF(AND(YEAR(SepSo1+21)=KalenderJahr,MONTH(SepSo1+21)=9),SepSo1+21,\"\"))","v":"2019-09-15"},null,null,{"$f":"IF(DAY(OktSo1)=1,IF(AND(YEAR(OktSo1+8)=KalenderJahr,MONTH(OktSo1+8)=10),OktSo1+8,\"\"),IF(AND(YEAR(OktSo1+15)=KalenderJahr,MONTH(OktSo1+15)=10),OktSo1+15,\"\"))","v":"2019-10-14"},{"$f":"IF(DAY(OktSo1)=1,IF(AND(YEAR(OktSo1+9)=KalenderJahr,MONTH(OktSo1+9)=10),OktSo1+9,\"\"),IF(AND(YEAR(OktSo1+16)=KalenderJahr,MONTH(OktSo1+16)=10),OktSo1+16,\"\"))","v":"2019-10-15"},{"$f":"IF(DAY(OktSo1)=1,IF(AND(YEAR(OktSo1+10)=KalenderJahr,MONTH(OktSo1+10)=10),OktSo1+10,\"\"),IF(AND(YEAR(OktSo1+17)=KalenderJahr,MONTH(OktSo1+17)=10),OktSo1+17,\"\"))","v":"2019-10-16"},{"$f":"IF(DAY(OktSo1)=1,IF(AND(YEAR(OktSo1+11)=KalenderJahr,MONTH(OktSo1+11)=10),OktSo1+11,\"\"),IF(AND(YEAR(OktSo1+18)=KalenderJahr,MONTH(OktSo1+18)=10),OktSo1+18,\"\"))","v":"2019-10-17"},{"$f":"IF(DAY(OktSo1)=1,IF(AND(YEAR(OktSo1+12)=KalenderJahr,MONTH(OktSo1+12)=10),OktSo1+12,\"\"),IF(AND(YEAR(OktSo1+19)=KalenderJahr,MONTH(OktSo1+19)=10),OktSo1+19,\"\"))","v":"2019-10-18"},{"$f":"IF(DAY(OktSo1)=1,IF(AND(YEAR(OktSo1+13)=KalenderJahr,MONTH(OktSo1+13)=10),OktSo1+13,\"\"),IF(AND(YEAR(OktSo1+20)=KalenderJahr,MONTH(OktSo1+20)=10),OktSo1+20,\"\"))","v":"2019-10-19"},{"$f":"IF(DAY(OktSo1)=1,IF(AND(YEAR(OktSo1+14)=KalenderJahr,MONTH(OktSo1+14)=10),OktSo1+14,\"\"),IF(AND(YEAR(OktSo1+21)=KalenderJahr,MONTH(OktSo1+21)=10),OktSo1+21,\"\"))","v":"2019-10-20"},null,null,{"$f":"IF(DAY(NovSo1)=1,IF(AND(YEAR(NovSo1+8)=KalenderJahr,MONTH(NovSo1+8)=11),NovSo1+8,\"\"),IF(AND(YEAR(NovSo1+15)=KalenderJahr,MONTH(NovSo1+15)=11),NovSo1+15,\"\"))","v":"2019-11-11"},{"$f":"IF(DAY(NovSo1)=1,IF(AND(YEAR(NovSo1+9)=KalenderJahr,MONTH(NovSo1+9)=11),NovSo1+9,\"\"),IF(AND(YEAR(NovSo1+16)=KalenderJahr,MONTH(NovSo1+16)=11),NovSo1+16,\"\"))","v":"2019-11-12"},{"$f":"IF(DAY(NovSo1)=1,IF(AND(YEAR(NovSo1+10)=KalenderJahr,MONTH(NovSo1+10)=11),NovSo1+10,\"\"),IF(AND(YEAR(NovSo1+17)=KalenderJahr,MONTH(NovSo1+17)=11),NovSo1+17,\"\"))","v":"2019-11-13"},{"$f":"IF(DAY(NovSo1)=1,IF(AND(YEAR(NovSo1+11)=KalenderJahr,MONTH(NovSo1+11)=11),NovSo1+11,\"\"),IF(AND(YEAR(NovSo1+18)=KalenderJahr,MONTH(NovSo1+18)=11),NovSo1+18,\"\"))","v":"2019-11-14"},{"$f":"IF(DAY(NovSo1)=1,IF(AND(YEAR(NovSo1+12)=KalenderJahr,MONTH(NovSo1+12)=11),NovSo1+12,\"\"),IF(AND(YEAR(NovSo1+19)=KalenderJahr,MONTH(NovSo1+19)=11),NovSo1+19,\"\"))","v":"2019-11-15"},{"$f":"IF(DAY(NovSo1)=1,IF(AND(YEAR(NovSo1+13)=KalenderJahr,MONTH(NovSo1+13)=11),NovSo1+13,\"\"),IF(AND(YEAR(NovSo1+20)=KalenderJahr,MONTH(NovSo1+20)=11),NovSo1+20,\"\"))","v":"2019-11-16"},{"$f":"IF(DAY(NovSo1)=1,IF(AND(YEAR(NovSo1+14)=KalenderJahr,MONTH(NovSo1+14)=11),NovSo1+14,\"\"),IF(AND(YEAR(NovSo1+21)=KalenderJahr,MONTH(NovSo1+21)=11),NovSo1+21,\"\"))","v":"2019-11-17"},null,null,{"$f":"IF(DAY(DezSo1)=1,IF(AND(YEAR(DezSo1+8)=KalenderJahr,MONTH(DezSo1+8)=12),DezSo1+8,\"\"),IF(AND(YEAR(DezSo1+15)=KalenderJahr,MONTH(DezSo1+15)=12),DezSo1+15,\"\"))","v":"2019-12-09"},{"$f":"IF(DAY(DezSo1)=1,IF(AND(YEAR(DezSo1+9)=KalenderJahr,MONTH(DezSo1+9)=12),DezSo1+9,\"\"),IF(AND(YEAR(DezSo1+16)=KalenderJahr,MONTH(DezSo1+16)=12),DezSo1+16,\"\"))","v":"2019-12-10"},{"$f":"IF(DAY(DezSo1)=1,IF(AND(YEAR(DezSo1+10)=KalenderJahr,MONTH(DezSo1+10)=12),DezSo1+10,\"\"),IF(AND(YEAR(DezSo1+17)=KalenderJahr,MONTH(DezSo1+17)=12),DezSo1+17,\"\"))","v":"2019-12-11"},{"$f":"IF(DAY(DezSo1)=1,IF(AND(YEAR(DezSo1+11)=KalenderJahr,MONTH(DezSo1+11)=12),DezSo1+11,\"\"),IF(AND(YEAR(DezSo1+18)=KalenderJahr,MONTH(DezSo1+18)=12),DezSo1+18,\"\"))","v":"2019-12-12"},{"$f":"IF(DAY(DezSo1)=1,IF(AND(YEAR(DezSo1+12)=KalenderJahr,MONTH(DezSo1+12)=12),DezSo1+12,\"\"),IF(AND(YEAR(DezSo1+19)=KalenderJahr,MONTH(DezSo1+19)=12),DezSo1+19,\"\"))","v":"2019-12-13"},{"$f":"IF(DAY(DezSo1)=1,IF(AND(YEAR(DezSo1+13)=KalenderJahr,MONTH(DezSo1+13)=12),DezSo1+13,\"\"),IF(AND(YEAR(DezSo1+20)=KalenderJahr,MONTH(DezSo1+20)=12),DezSo1+20,\"\"))","v":"2019-12-14"},{"$f":"IF(DAY(DezSo1)=1,IF(AND(YEAR(DezSo1+14)=KalenderJahr,MONTH(DezSo1+14)=12),DezSo1+14,\"\"),IF(AND(YEAR(DezSo1+21)=KalenderJahr,MONTH(DezSo1+21)=12),DezSo1+21,\"\"))","v":"2019-12-15"}]
[null,null,{"$f":"IF(DAY(SepSo1)=1,IF(AND(YEAR(SepSo1+15)=KalenderJahr,MONTH(SepSo1+15)=9),SepSo1+15,\"\"),IF(AND(YEAR(SepSo1+22)=KalenderJahr,MONTH(SepSo1+22)=9),SepSo1+22,\"\"))","v":"2019-09-16"},{"$f":"IF(DAY(SepSo1)=1,IF(AND(YEAR(SepSo1+16)=KalenderJahr,MONTH(SepSo1+16)=9),SepSo1+16,\"\"),IF(AND(YEAR(SepSo1+23)=KalenderJahr,MONTH(SepSo1+23)=9),SepSo1+23,\"\"))","v":"2019-09-17"},{"$f":"IF(DAY(SepSo1)=1,IF(AND(YEAR(SepSo1+17)=KalenderJahr,MONTH(SepSo1+17)=9),SepSo1+17,\"\"),IF(AND(YEAR(SepSo1+24)=KalenderJahr,MONTH(SepSo1+24)=9),SepSo1+24,\"\"))","v":"2019-09-18"},{"$f":"IF(DAY(SepSo1)=1,IF(AND(YEAR(SepSo1+18)=KalenderJahr,MONTH(SepSo1+18)=9),SepSo1+18,\"\"),IF(AND(YEAR(SepSo1+25)=KalenderJahr,MONTH(SepSo1+25)=9),SepSo1+25,\"\"))","v":"2019-09-19"},{"$f":"IF(DAY(SepSo1)=1,IF(AND(YEAR(SepSo1+19)=KalenderJahr,MONTH(SepSo1+19)=9),SepSo1+19,\"\"),IF(AND(YEAR(SepSo1+26)=KalenderJahr,MONTH(SepSo1+26)=9),SepSo1+26,\"\"))","v":"2019-09-20"},{"$f":"IF(DAY(SepSo1)=1,IF(AND(YEAR(SepSo1+20)=KalenderJahr,MONTH(SepSo1+20)=9),SepSo1+20,\"\"),IF(AND(YEAR(SepSo1+27)=KalenderJahr,MONTH(SepSo1+27)=9),SepSo1+27,\"\"))","v":"2019-09-21"},{"$f":"IF(DAY(SepSo1)=1,IF(AND(YEAR(SepSo1+21)=KalenderJahr,MONTH(SepSo1+21)=9),SepSo1+21,\"\"),IF(AND(YEAR(SepSo1+28)=KalenderJahr,MONTH(SepSo1+28)=9),SepSo1+28,\"\"))","v":"2019-09-22"},null,null,{"$f":"IF(DAY(OktSo1)=1,IF(AND(YEAR(OktSo1+15)=KalenderJahr,MONTH(OktSo1+15)=10),OktSo1+15,\"\"),IF(AND(YEAR(OktSo1+22)=KalenderJahr,MONTH(OktSo1+22)=10),OktSo1+22,\"\"))","v":"2019-10-21"},{"$f":"IF(DAY(OktSo1)=1,IF(AND(YEAR(OktSo1+16)=KalenderJahr,MONTH(OktSo1+16)=10),OktSo1+16,\"\"),IF(AND(YEAR(OktSo1+23)=KalenderJahr,MONTH(OktSo1+23)=10),OktSo1+23,\"\"))","v":"2019-10-22"},{"$f":"IF(DAY(OktSo1)=1,IF(AND(YEAR(OktSo1+17)=KalenderJahr,MONTH(OktSo1+17)=10),OktSo1+17,\"\"),IF(AND(YEAR(OktSo1+24)=KalenderJahr,MONTH(OktSo1+24)=10),OktSo1+24,\"\"))","v":"2019-10-23"},{"$f":"IF(DAY(OktSo1)=1,IF(AND(YEAR(OktSo1+18)=KalenderJahr,MONTH(OktSo1+18)=10),OktSo1+18,\"\"),IF(AND(YEAR(OktSo1+25)=KalenderJahr,MONTH(OktSo1+25)=10),OktSo1+25,\"\"))","v":"2019-10-24"},{"$f":"IF(DAY(OktSo1)=1,IF(AND(YEAR(OktSo1+19)=KalenderJahr,MONTH(OktSo1+19)=10),OktSo1+19,\"\"),IF(AND(YEAR(OktSo1+26)=KalenderJahr,MONTH(OktSo1+26)=10),OktSo1+26,\"\"))","v":"2019-10-25"},{"$f":"IF(DAY(OktSo1)=1,IF(AND(YEAR(OktSo1+20)=KalenderJahr,MONTH(OktSo1+20)=10),OktSo1+20,\"\"),IF(AND(YEAR(OktSo1+27)=KalenderJahr,MONTH(OktSo1+27)=10),OktSo1+27,\"\"))","v":"2019-10-26"},{"$f":"IF(DAY(OktSo1)=1,IF(AND(YEAR(OktSo1+21)=KalenderJahr,MONTH(OktSo1+21)=10),OktSo1+21,\"\"),IF(AND(YEAR(OktSo1+28)=KalenderJahr,MONTH(OktSo1+28)=10),OktSo1+28,\"\"))","v":"2019-10-27"},null,null,{"$f":"IF(DAY(NovSo1)=1,IF(AND(YEAR(NovSo1+15)=KalenderJahr,MONTH(NovSo1+15)=11),NovSo1+15,\"\"),IF(AND(YEAR(NovSo1+22)=KalenderJahr,MONTH(NovSo1+22)=11),NovSo1+22,\"\"))","v":"2019-11-18"},{"$f":"IF(DAY(NovSo1)=1,IF(AND(YEAR(NovSo1+16)=KalenderJahr,MONTH(NovSo1+16)=11),NovSo1+16,\"\"),IF(AND(YEAR(NovSo1+23)=KalenderJahr,MONTH(NovSo1+23)=11),NovSo1+23,\"\"))","v":"2019-11-19"},{"$f":"IF(DAY(NovSo1)=1,IF(AND(YEAR(NovSo1+17)=KalenderJahr,MONTH(NovSo1+17)=11),NovSo1+17,\"\"),IF(AND(YEAR(NovSo1+24)=KalenderJahr,MONTH(NovSo1+24)=11),NovSo1+24,\"\"))","v":"2019-11-20"},{"$f":"IF(DAY(NovSo1)=1,IF(AND(YEAR(NovSo1+18)=KalenderJahr,MONTH(NovSo1+18)=11),NovSo1+18,\"\"),IF(AND(YEAR(NovSo1+25)=KalenderJahr,MONTH(NovSo1+25)=11),NovSo1+25,\"\"))","v":"2019-11-21"},{"$f":"IF(DAY(NovSo1)=1,IF(AND(YEAR(NovSo1+19)=KalenderJahr,MONTH(NovSo1+19)=11),NovSo1+19,\"\"),IF(AND(YEAR(NovSo1+26)=KalenderJahr,MONTH(NovSo1+26)=11),NovSo1+26,\"\"))","v":"2019-11-22"},{"$f":"IF(DAY(NovSo1)=1,IF(AND(YEAR(NovSo1+20)=KalenderJahr,MONTH(NovSo1+20)=11),NovSo1+20,\"\"),IF(AND(YEAR(NovSo1+27)=KalenderJahr,MONTH(NovSo1+27)=11),NovSo1+27,\"\"))","v":"2019-11-23"},{"$f":"IF(DAY(NovSo1)=1,IF(AND(YEAR(NovSo1+21)=KalenderJahr,MONTH(NovSo1+21)=11),NovSo1+21,\"\"),IF(AND(YEAR(NovSo1+28)=KalenderJahr,MONTH(NovSo1+28)=11),NovSo1+28,\"\"))","v":"2019-11-24"},null,null,{"$f":"IF(DAY(DezSo1)=1,IF(AND(YEAR(DezSo1+15)=KalenderJahr,MONTH(DezSo1+15)=12),DezSo1+15,\"\"),IF(AND(YEAR(DezSo1+22)=KalenderJahr,MONTH(DezSo1+22)=12),DezSo1+22,\"\"))","v":"2019-12-16"},{"$f":"IF(DAY(DezSo1)=1,IF(AND(YEAR(DezSo1+16)=KalenderJahr,MONTH(DezSo1+16)=12),DezSo1+16,\"\"),IF(AND(YEAR(DezSo1+23)=KalenderJahr,MONTH(DezSo1+23)=12),DezSo1+23,\"\"))","v":"2019-12-17"},{"$f":"IF(DAY(DezSo1)=1,IF(AND(YEAR(DezSo1+17)=KalenderJahr,MONTH(DezSo1+17)=12),DezSo1+17,\"\"),IF(AND(YEAR(DezSo1+24)=KalenderJahr,MONTH(DezSo1+24)=12),DezSo1+24,\"\"))","v":"2019-12-18"},{"$f":"IF(DAY(DezSo1)=1,IF(AND(YEAR(DezSo1+18)=KalenderJahr,MONTH(DezSo1+18)=12),DezSo1+18,\"\"),IF(AND(YEAR(DezSo1+25)=KalenderJahr,MONTH(DezSo1+25)=12),DezSo1+25,\"\"))","v":"2019-12-19"},{"$f":"IF(DAY(DezSo1)=1,IF(AND(YEAR(DezSo1+19)=KalenderJahr,MONTH(DezSo1+19)=12),DezSo1+19,\"\"),IF(AND(YEAR(DezSo1+26)=KalenderJahr,MONTH(DezSo1+26)=12),DezSo1+26,\"\"))","v":"2019-12-20"},{"$f":"IF(DAY(DezSo1)=1,IF(AND(YEAR(DezSo1+20)=KalenderJahr,MONTH(DezSo1+20)=12),DezSo1+20,\"\"),IF(AND(YEAR(DezSo1+27)=KalenderJahr,MONTH(DezSo1+27)=12),DezSo1+27,\"\"))","v":"2019-12-21"},{"$f":"IF(DAY(DezSo1)=1,IF(AND(YEAR(DezSo1+21)=KalenderJahr,MONTH(DezSo1+21)=12),DezSo1+21,\"\"),IF(AND(YEAR(DezSo1+28)=KalenderJahr,MONTH(DezSo1+28)=12),DezSo1+28,\"\"))","v":"2019-12-22"}]
[null,null,{"$f":"IF(DAY(SepSo1)=1,IF(AND(YEAR(SepSo1+22)=KalenderJahr,MONTH(SepSo1+22)=9),SepSo1+22,\"\"),IF(AND(YEAR(SepSo1+29)=KalenderJahr,MONTH(SepSo1+29)=9),SepSo1+29,\"\"))","v":"2019-09-23"},{"$f":"IF(DAY(SepSo1)=1,IF(AND(YEAR(SepSo1+23)=KalenderJahr,MONTH(SepSo1+23)=9),SepSo1+23,\"\"),IF(AND(YEAR(SepSo1+30)=KalenderJahr,MONTH(SepSo1+30)=9),SepSo1+30,\"\"))","v":"2019-09-24"},{"$f":"IF(DAY(SepSo1)=1,IF(AND(YEAR(SepSo1+24)=KalenderJahr,MONTH(SepSo1+24)=9),SepSo1+24,\"\"),IF(AND(YEAR(SepSo1+31)=KalenderJahr,MONTH(SepSo1+31)=9),SepSo1+31,\"\"))","v":"2019-09-25"},{"$f":"IF(DAY(SepSo1)=1,IF(AND(YEAR(SepSo1+25)=KalenderJahr,MONTH(SepSo1+25)=9),SepSo1+25,\"\"),IF(AND(YEAR(SepSo1+32)=KalenderJahr,MONTH(SepSo1+32)=9),SepSo1+32,\"\"))","v":"2019-09-26"},{"$f":"IF(DAY(SepSo1)=1,IF(AND(YEAR(SepSo1+26)=KalenderJahr,MONTH(SepSo1+26)=9),SepSo1+26,\"\"),IF(AND(YEAR(SepSo1+33)=KalenderJahr,MONTH(SepSo1+33)=9),SepSo1+33,\"\"))","v":"2019-09-27"},{"$f":"IF(DAY(SepSo1)=1,IF(AND(YEAR(SepSo1+27)=KalenderJahr,MONTH(SepSo1+27)=9),SepSo1+27,\"\"),IF(AND(YEAR(SepSo1+34)=KalenderJahr,MONTH(SepSo1+34)=9),SepSo1+34,\"\"))","v":"2019-09-28"},{"$f":"IF(DAY(SepSo1)=1,IF(AND(YEAR(SepSo1+28)=KalenderJahr,MONTH(SepSo1+28)=9),SepSo1+28,\"\"),IF(AND(YEAR(SepSo1+35)=KalenderJahr,MONTH(SepSo1+35)=9),SepSo1+35,\"\"))","v":"2019-09-29"},null,null,{"$f":"IF(DAY(OktSo1)=1,IF(AND(YEAR(OktSo1+22)=KalenderJahr,MONTH(OktSo1+22)=10),OktSo1+22,\"\"),IF(AND(YEAR(OktSo1+29)=KalenderJahr,MONTH(OktSo1+29)=10),OktSo1+29,\"\"))","v":"2019-10-28"},{"$f":"IF(DAY(OktSo1)=1,IF(AND(YEAR(OktSo1+23)=KalenderJahr,MONTH(OktSo1+23)=10),OktSo1+23,\"\"),IF(AND(YEAR(OktSo1+30)=KalenderJahr,MONTH(OktSo1+30)=10),OktSo1+30,\"\"))","v":"2019-10-29"},{"$f":"IF(DAY(OktSo1)=1,IF(AND(YEAR(OktSo1+24)=KalenderJahr,MONTH(OktSo1+24)=10),OktSo1+24,\"\"),IF(AND(YEAR(OktSo1+31)=KalenderJahr,MONTH(OktSo1+31)=10),OktSo1+31,\"\"))","v":"2019-10-30"},{"$f":"IF(DAY(OktSo1)=1,IF(AND(YEAR(OktSo1+25)=KalenderJahr,MONTH(OktSo1+25)=10),OktSo1+25,\"\"),IF(AND(YEAR(OktSo1+32)=KalenderJahr,MONTH(OktSo1+32)=10),OktSo1+32,\"\"))","v":"2019-10-31"},{"$f":"IF(DAY(OktSo1)=1,IF(AND(YEAR(OktSo1+26)=KalenderJahr,MONTH(OktSo1+26)=10),OktSo1+26,\"\"),IF(AND(YEAR(OktSo1+33)=KalenderJahr,MONTH(OktSo1+33)=10),OktSo1+33,\"\"))","v":""},{"$f":"IF(DAY(OktSo1)=1,IF(AND(YEAR(OktSo1+27)=KalenderJahr,MONTH(OktSo1+27)=10),OktSo1+27,\"\"),IF(AND(YEAR(OktSo1+34)=KalenderJahr,MONTH(OktSo1+34)=10),OktSo1+34,\"\"))","v":""},{"$f":"IF(DAY(OktSo1)=1,IF(AND(YEAR(OktSo1+28)=KalenderJahr,MONTH(OktSo1+28)=10),OktSo1+28,\"\"),IF(AND(YEAR(OktSo1+35)=KalenderJahr,MONTH(OktSo1+35)=10),OktSo1+35,\"\"))","v":""},null,null,{"$f":"IF(DAY(NovSo1)=1,IF(AND(YEAR(NovSo1+22)=KalenderJahr,MONTH(NovSo1+22)=11),NovSo1+22,\"\"),IF(AND(YEAR(NovSo1+29)=KalenderJahr,MONTH(NovSo1+29)=11),NovSo1+29,\"\"))","v":"2019-11-25"},{"$f":"IF(DAY(NovSo1)=1,IF(AND(YEAR(NovSo1+23)=KalenderJahr,MONTH(NovSo1+23)=11),NovSo1+23,\"\"),IF(AND(YEAR(NovSo1+30)=KalenderJahr,MONTH(NovSo1+30)=11),NovSo1+30,\"\"))","v":"2019-11-26"},{"$f":"IF(DAY(NovSo1)=1,IF(AND(YEAR(NovSo1+24)=KalenderJahr,MONTH(NovSo1+24)=11),NovSo1+24,\"\"),IF(AND(YEAR(NovSo1+31)=KalenderJahr,MONTH(NovSo1+31)=11),NovSo1+31,\"\"))","v":"2019-11-27"},{"$f":"IF(DAY(NovSo1)=1,IF(AND(YEAR(NovSo1+25)=KalenderJahr,MONTH(NovSo1+25)=11),NovSo1+25,\"\"),IF(AND(YEAR(NovSo1+32)=KalenderJahr,MONTH(NovSo1+32)=11),NovSo1+32,\"\"))","v":"2019-11-28"},{"$f":"IF(DAY(NovSo1)=1,IF(AND(YEAR(NovSo1+26)=KalenderJahr,MONTH(NovSo1+26)=11),NovSo1+26,\"\"),IF(AND(YEAR(NovSo1+33)=KalenderJahr,MONTH(NovSo1+33)=11),NovSo1+33,\"\"))","v":"2019-11-29"},{"$f":"IF(DAY(NovSo1)=1,IF(AND(YEAR(NovSo1+27)=KalenderJahr,MONTH(NovSo1+27)=11),NovSo1+27,\"\"),IF(AND(YEAR(NovSo1+34)=KalenderJahr,MONTH(NovSo1+34)=11),NovSo1+34,\"\"))","v":"2019-11-30"},{"$f":"IF(DAY(NovSo1)=1,IF(AND(YEAR(NovSo1+28)=KalenderJahr,MONTH(NovSo1+28)=11),NovSo1+28,\"\"),IF(AND(YEAR(NovSo1+35)=KalenderJahr,MONTH(NovSo1+35)=11),NovSo1+35,\"\"))","v":""},null,null,{"$f":"IF(DAY(DezSo1)=1,IF(AND(YEAR(DezSo1+22)=KalenderJahr,MONTH(DezSo1+22)=12),DezSo1+22,\"\"),IF(AND(YEAR(DezSo1+29)=KalenderJahr,MONTH(DezSo1+29)=12),DezSo1+29,\"\"))","v":"2019-12-23"},{"$f":"IF(DAY(DezSo1)=1,IF(AND(YEAR(DezSo1+23)=KalenderJahr,MONTH(DezSo1+23)=12),DezSo1+23,\"\"),IF(AND(YEAR(DezSo1+30)=KalenderJahr,MONTH(DezSo1+30)=12),DezSo1+30,\"\"))","v":"2019-12-24"},{"$f":"IF(DAY(DezSo1)=1,IF(AND(YEAR(DezSo1+24)=KalenderJahr,MONTH(DezSo1+24)=12),DezSo1+24,\"\"),IF(AND(YEAR(DezSo1+31)=KalenderJahr,MONTH(DezSo1+31)=12),DezSo1+31,\"\"))","v":"2019-12-25"},{"$f":"IF(DAY(DezSo1)=1,IF(AND(YEAR(DezSo1+25)=KalenderJahr,MONTH(DezSo1+25)=12),DezSo1+25,\"\"),IF(AND(YEAR(DezSo1+32)=KalenderJahr,MONTH(DezSo1+32)=12),DezSo1+32,\"\"))","v":"2019-12-26"},{"$f":"IF(DAY(DezSo1)=1,IF(AND(YEAR(DezSo1+26)=KalenderJahr,MONTH(DezSo1+26)=12),DezSo1+26,\"\"),IF(AND(YEAR(DezSo1+33)=KalenderJahr,MONTH(DezSo1+33)=12),DezSo1+33,\"\"))","v":"2019-12-27"},{"$f":"IF(DAY(DezSo1)=1,IF(AND(YEAR(DezSo1+27)=KalenderJahr,MONTH(DezSo1+27)=12),DezSo1+27,\"\"),IF(AND(YEAR(DezSo1+34)=KalenderJahr,MONTH(DezSo1+34)=12),DezSo1+34,\"\"))","v":"2019-12-28"},{"$f":"IF(DAY(DezSo1)=1,IF(AND(YEAR(DezSo1+28)=KalenderJahr,MONTH(DezSo1+28)=12),DezSo1+28,\"\"),IF(AND(YEAR(DezSo1+35)=KalenderJahr,MONTH(DezSo1+35)=12),DezSo1+35,\"\"))","v":"2019-12-29"}]
[null,null,{"$f":"IF(DAY(SepSo1)=1,IF(AND(YEAR(SepSo1+29)=KalenderJahr,MONTH(SepSo1+29)=9),SepSo1+29,\"\"),IF(AND(YEAR(SepSo1+36)=KalenderJahr,MONTH(SepSo1+36)=9),SepSo1+36,\"\"))","v":"2019-09-30"},{"$f":"IF(DAY(SepSo1)=1,IF(AND(YEAR(SepSo1+30)=KalenderJahr,MONTH(SepSo1+30)=9),SepSo1+30,\"\"),IF(AND(YEAR(SepSo1+37)=KalenderJahr,MONTH(SepSo1+37)=9),SepSo1+37,\"\"))","v":""},{"$f":"IF(DAY(SepSo1)=1,IF(AND(YEAR(SepSo1+31)=KalenderJahr,MONTH(SepSo1+31)=9),SepSo1+31,\"\"),IF(AND(YEAR(SepSo1+38)=KalenderJahr,MONTH(SepSo1+38)=9),SepSo1+38,\"\"))","v":""},{"$f":"IF(DAY(SepSo1)=1,IF(AND(YEAR(SepSo1+32)=KalenderJahr,MONTH(SepSo1+32)=9),SepSo1+32,\"\"),IF(AND(YEAR(SepSo1+39)=KalenderJahr,MONTH(SepSo1+39)=9),SepSo1+39,\"\"))","v":""},{"$f":"IF(DAY(SepSo1)=1,IF(AND(YEAR(SepSo1+33)=KalenderJahr,MONTH(SepSo1+33)=9),SepSo1+33,\"\"),IF(AND(YEAR(SepSo1+40)=KalenderJahr,MONTH(SepSo1+40)=9),SepSo1+40,\"\"))","v":""},{"$f":"IF(DAY(SepSo1)=1,IF(AND(YEAR(SepSo1+34)=KalenderJahr,MONTH(SepSo1+34)=9),SepSo1+34,\"\"),IF(AND(YEAR(SepSo1+41)=KalenderJahr,MONTH(SepSo1+41)=9),SepSo1+41,\"\"))","v":""},{"$f":"IF(DAY(SepSo1)=1,IF(AND(YEAR(SepSo1+35)=KalenderJahr,MONTH(SepSo1+35)=9),SepSo1+35,\"\"),IF(AND(YEAR(SepSo1+42)=KalenderJahr,MONTH(SepSo1+42)=9),SepSo1+42,\"\"))","v":""},null,null,{"$f":"IF(DAY(OktSo1)=1,IF(AND(YEAR(OktSo1+29)=KalenderJahr,MONTH(OktSo1+29)=10),OktSo1+29,\"\"),IF(AND(YEAR(OktSo1+36)=KalenderJahr,MONTH(OktSo1+36)=10),OktSo1+36,\"\"))","v":""},{"$f":"IF(DAY(OktSo1)=1,IF(AND(YEAR(OktSo1+30)=KalenderJahr,MONTH(OktSo1+30)=10),OktSo1+30,\"\"),IF(AND(YEAR(OktSo1+37)=KalenderJahr,MONTH(OktSo1+37)=10),OktSo1+37,\"\"))","v":""},{"$f":"IF(DAY(OktSo1)=1,IF(AND(YEAR(OktSo1+31)=KalenderJahr,MONTH(OktSo1+31)=10),OktSo1+31,\"\"),IF(AND(YEAR(OktSo1+38)=KalenderJahr,MONTH(OktSo1+38)=10),OktSo1+38,\"\"))","v":""},{"$f":"IF(DAY(OktSo1)=1,IF(AND(YEAR(OktSo1+32)=KalenderJahr,MONTH(OktSo1+32)=10),OktSo1+32,\"\"),IF(AND(YEAR(OktSo1+39)=KalenderJahr,MONTH(OktSo1+39)=10),OktSo1+39,\"\"))","v":""},{"$f":"IF(DAY(OktSo1)=1,IF(AND(YEAR(OktSo1+33)=KalenderJahr,MONTH(OktSo1+33)=10),OktSo1+33,\"\"),IF(AND(YEAR(OktSo1+40)=KalenderJahr,MONTH(OktSo1+40)=10),OktSo1+40,\"\"))","v":""},{"$f":"IF(DAY(OktSo1)=1,IF(AND(YEAR(OktSo1+34)=KalenderJahr,MONTH(OktSo1+34)=10),OktSo1+34,\"\"),IF(AND(YEAR(OktSo1+41)=KalenderJahr,MONTH(OktSo1+41)=10),OktSo1+41,\"\"))","v":""},{"$f":"IF(DAY(OktSo1)=1,IF(AND(YEAR(OktSo1+35)=KalenderJahr,MONTH(OktSo1+35)=10),OktSo1+35,\"\"),IF(AND(YEAR(OktSo1+42)=KalenderJahr,MONTH(OktSo1+42)=10),OktSo1+42,\"\"))","v":""},null,null,{"$f":"IF(DAY(NovSo1)=1,IF(AND(YEAR(NovSo1+29)=KalenderJahr,MONTH(NovSo1+29)=11),NovSo1+29,\"\"),IF(AND(YEAR(NovSo1+36)=KalenderJahr,MONTH(NovSo1+36)=11),NovSo1+36,\"\"))","v":""},{"$f":"IF(DAY(NovSo1)=1,IF(AND(YEAR(NovSo1+30)=KalenderJahr,MONTH(NovSo1+30)=11),NovSo1+30,\"\"),IF(AND(YEAR(NovSo1+37)=KalenderJahr,MONTH(NovSo1+37)=11),NovSo1+37,\"\"))","v":""},{"$f":"IF(DAY(NovSo1)=1,IF(AND(YEAR(NovSo1+31)=KalenderJahr,MONTH(NovSo1+31)=11),NovSo1+31,\"\"),IF(AND(YEAR(NovSo1+38)=KalenderJahr,MONTH(NovSo1+38)=11),NovSo1+38,\"\"))","v":""},{"$f":"IF(DAY(NovSo1)=1,IF(AND(YEAR(NovSo1+32)=KalenderJahr,MONTH(NovSo1+32)=11),NovSo1+32,\"\"),IF(AND(YEAR(NovSo1+39)=KalenderJahr,MONTH(NovSo1+39)=11),NovSo1+39,\"\"))","v":""},{"$f":"IF(DAY(NovSo1)=1,IF(AND(YEAR(NovSo1+33)=KalenderJahr,MONTH(NovSo1+33)=11),NovSo1+33,\"\"),IF(AND(YEAR(NovSo1+40)=KalenderJahr,MONTH(NovSo1+40)=11),NovSo1+40,\"\"))","v":""},{"$f":"IF(DAY(NovSo1)=1,IF(AND(YEAR(NovSo1+34)=KalenderJahr,MONTH(NovSo1+34)=11),NovSo1+34,\"\"),IF(AND(YEAR(NovSo1+41)=KalenderJahr,MONTH(NovSo1+41)=11),NovSo1+41,\"\"))","v":""},{"$f":"IF(DAY(NovSo1)=1,IF(AND(YEAR(NovSo1+35)=KalenderJahr,MONTH(NovSo1+35)=11),NovSo1+35,\"\"),IF(AND(YEAR(NovSo1+42)=KalenderJahr,MONTH(NovSo1+42)=11),NovSo1+42,\"\"))","v":""},null,null,{"$f":"IF(DAY(DezSo1)=1,IF(AND(YEAR(DezSo1+29)=KalenderJahr,MONTH(DezSo1+29)=12),DezSo1+29,\"\"),IF(AND(YEAR(DezSo1+36)=KalenderJahr,MONTH(DezSo1+36)=12),DezSo1+36,\"\"))","v":"2019-12-30"},{"$f":"IF(DAY(DezSo1)=1,IF(AND(YEAR(DezSo1+30)=KalenderJahr,MONTH(DezSo1+30)=12),DezSo1+30,\"\"),IF(AND(YEAR(DezSo1+37)=KalenderJahr,MONTH(DezSo1+37)=12),DezSo1+37,\"\"))","v":"2019-12-31"},{"$f":"IF(DAY(DezSo1)=1,IF(AND(YEAR(DezSo1+31)=KalenderJahr,MONTH(DezSo1+31)=12),DezSo1+31,\"\"),IF(AND(YEAR(DezSo1+38)=KalenderJahr,MONTH(DezSo1+38)=12),DezSo1+38,\"\"))","v":""},{"$f":"IF(DAY(DezSo1)=1,IF(AND(YEAR(DezSo1+32)=KalenderJahr,MONTH(DezSo1+32)=12),DezSo1+32,\"\"),IF(AND(YEAR(DezSo1+39)=KalenderJahr,MONTH(DezSo1+39)=12),DezSo1+39,\"\"))","v":""},{"$f":"IF(DAY(DezSo1)=1,IF(AND(YEAR(DezSo1+33)=KalenderJahr,MONTH(DezSo1+33)=12),DezSo1+33,\"\"),IF(AND(YEAR(DezSo1+40)=KalenderJahr,MONTH(DezSo1+40)=12),DezSo1+40,\"\"))","v":""},{"$f":"IF(DAY(DezSo1)=1,IF(AND(YEAR(DezSo1+34)=KalenderJahr,MONTH(DezSo1+34)=12),DezSo1+34,\"\"),IF(AND(YEAR(DezSo1+41)=KalenderJahr,MONTH(DezSo1+41)=12),DezSo1+41,\"\"))","v":""},{"$f":"IF(DAY(DezSo1)=1,IF(AND(YEAR(DezSo1+35)=KalenderJahr,MONTH(DezSo1+35)=12),DezSo1+35,\"\"),IF(AND(YEAR(DezSo1+42)=KalenderJahr,MONTH(DezSo1+42)=12),DezSo1+42,\"\"))","v":""}]